{"text_format":"1","workbook":"xlsx","n_sheets":5,"sheets":["Adatok","Munka1","ADATLAP","MINTA_Számonkérési rendszerre","segédtábla"],"not_rendered":{"charts":0,"images":3,"macros":1,"external_links":0,"defined_names":13,"comments":3,"pivot_tables":0},"unopened":[],"bounds":{"document_bytes":16777216,"sheet_cells":100000,"rows_first":2000,"rows_last":500,"rows_between":2000,"halvings":0,"cell_chars":16384,"cell_head_chars":4096},"cells_cut":0,"cells_raw":0,"read":"whole","date_system":"1900"}

{"sheet":"Adatok","index":0,"n_rows":251,"n_cols":29,"rows_kept":251,"cut":false,"hidden":false,"merged":[]}
[null,"Tantárgy neve magyarul","Tantárgy neve angolul","Kötelező előtanulmány(ok) kódja(i):","Tantárgy típusa (elsődleges tanterven): ","Tárgyfelelős oktató neve: ","Tárgyfelelős egység neve: ","Az oktatás féléve őszi","Az oktatás féléve tavaszi","Az oktatás féléve mindkettő","Kreditértéke:","Óraigény / Nappali (óra/hét) előadás","Óraigény / Nappali (óra/hét) szeminárium","Óraigény / Nappali (óra/hét) lab. gyak.","Levelező (óra/félév) előadás","Levelező (óra/félév) szeminárium","Levelező (óra/félév) lab.gyak","Számonkérés formája ","Értékelés típusa","A meghirdetés mintatantervei:","Oktatás célja magyarul","Oktatás célja angolul","Tantárgy tartalma magyarul, elsajátítandó ismeretanyag tömör, informáló leírása ","Tantárgy tartalma angolul, elsajátítandó ismeretanyag tömör, informáló leírása ","Számonkérés módja magyarul","Számonkérés módja angolul","Leckekönyv-aláírási feltételek magyarul","Leckekönyv-aláírási feltételek angolul","Irodalmak"]
[{"$f":"CONCATENATE(F2,\" \",B2)","v":"Dr. Nemestóthy Béla Nándor A biotechnológiai ipar helye az üzleti világban"},"A biotechnológiai ipar helye az üzleti világban","Bioindustry in the Business World",null,"specializáción kötelező","Dr. Nemestóthy Béla Nándor","Bio-, Környezet- és Vegyészmérnöki Kutató-Fejlesztő Központ","x",null,null,3,2,0,0,10,0,0,"Folyamatos számonkérés (F)","ötfokozatú","Elsődleges tanterv: VZUBA\nTovábbi tanterv:",null,null,null,null,null,null,null,null,"Kötelező:\nAjánlott: "]
[{"$f":"CONCATENATE(F3,\" \",B3)","v":"Dr. Horváth Ottó/Szabóné Dr. Bárdos Erzsébet? A kémia alapjai"},"A kémia alapjai","Introduction to the Basics of Chemistry"," ","kötelező","Dr. Horváth Ottó/Szabóné Dr. Bárdos Erzsébet?","Természettudományi Központ","x",null,null,6,2,0,3,10,0,15,"Vizsga (V)","ötfokozatú","Elsődleges tanterv: AM, BM, KE, KT, KM, VM, VZUBA\nTovábbi tanterv:",null,null,null,null,null,null,null,null,"Kötelező:\nAjánlott: "]
["Dr. Ruppert Tamás Adatfeldolgozás és programozás","Adatfeldolgozás és programozás","Data Processing and Programming","Programozás alapjai","kötelező(MM), specializáción kötelező (GM)","Dr. Ruppert Tamás","Bio-, Környezet- és Vegyészmérnöki Kutató-Fejlesztő Központ","x",null,null,6,2,0,2,10,0,10,"Folyamatos számonkérés (F)","ötfokozatú","Elsődleges tanterv: kötelező - MM, spec. köt. - GM\nTovábbi tanterv:",null,null,null,null,null,null,null,null,"Kötelező:\nAjánlott: "]
["Dr. Szalai István Aktuátortechnika","Aktuátortechnika","Actuator Technology","Szenzortechnika","kötelező (MM), specializáción kötelező (GE)","Dr. Szalai István","Műszaki Tudományok Kutató-Fejlesztő Központ",null,"x",null,6,2,0,2,10,0,10,"Vizsga (V)","ötfokozatú","Elsődleges tanterv: kötelező - MM, spec. köt. - GM\nTovábbi tanterv:",null,null,null,null,null,null,null,null,"Kötelező:\nAjánlott: "]
["Dr. Lukács Attila Alkatrészgyártás","Alkatrészgyártás","Component Technology","Polimertechnológia?","specializáción kötelező","Dr. Lukács Attila","Mechatronikai Képzési és Kutatási Intézet",null,"x",null,6,2,2,0,10,10,0,"Folyamatos számonkérés (F)","ötfokozatú","Elsődleges tanterv: MM\nTovábbi tanterv:",null,null,null,null,null,null,null,null,"Kötelező:\nAjánlott: "]
["Fodor Lajos? Általános és szervetlen kémia ","Általános és szervetlen kémia ","General and Inorganic Chemistry","A kémia alapjai","kötelező","Fodor Lajos?","Természettudományi Központ",null,"x",null,6,2,0,3,10,0,15,"Vizsga (V)","ötfokozatú","Elsődleges tanterv: AM, BM, KE, KT, KM, VM, VZUBA\nTovábbi tanterv:",null,null,null,null,null,null,null,null,"Kötelező:\nAjánlott: "]
["Dr. Gyurika István Gábor Általános géptan","Általános géptan","General  Mechanical Engineering",null,"kötelező","Dr. Gyurika István Gábor","Műszaki Tudományok Kutató-Fejlesztő Központ","x",null,null,3,2,0,0,10,0,0,"Folyamatos számonkérés (F)","ötfokozatú","Elsődleges tanterv: GM,  VM, VZUBA\nTovábbi tanterv:",null,null,null,null,null,null,null,null,"Kötelező:\nAjánlott: "]
["Dr. Horváth Ottó Általános kémia","Általános kémia","General Chemistry",null,"kötelező","Dr. Horváth Ottó","Természettudományi Központ",null,"x",null,3,2,0,0,10,0,0,"Folyamatos számonkérés (F)","ötfokozatú","Elsődleges tanterv: GM, MM\nTovábbi tanterv:",null,null,null,null,null,null,null,null,"Kötelező:\nAjánlott: "]
["Dr. Kovács András Anyagmérnöki vizsgálatok laborgyakorlat","Anyagmérnöki vizsgálatok laborgyakorlat","Materials Engineering Testing Laboratory Practice","Anyagtudomány","specializáción kötelező","Dr. Kovács András","Műszaki Tudományok Kutató-Fejlesztő Központ",null,"x",null,6,0,0,6,null,null,null,"Félévközi jegy (É)","ötfokozatú","Elsődleges tanterv: AM\nTovábbi tanterv:",null,null,null,null,null,null,null,null,"Kötelező:\nAjánlott: "]
["Dr. Timár Imre Anyagmozgató gépek","Anyagmozgató gépek","Material Handling Equipments","Általános géptan","kötelező","Dr. Timár Imre","Műszaki Tudományok Kutató-Fejlesztő Központ",null,"x",null,3,2,0,0,10,0,0,"Folyamatos számonkérés (F)","ötfokozatú","Elsődleges tanterv: GM\nTovábbi tanterv:",null,null,null,null,null,null,null,null,"Kötelező:\nAjánlott: "]
["Dr. Vágvölgyi Veronika Anyagszerkezeti vizsgálatok","Anyagszerkezeti vizsgálatok","Materials Structure Elucidation Methods ","Kémiai analízis I.","kötelező, specializáción kötelező","Dr. Vágvölgyi Veronika","Természettudományi Központ","x",null,null,6,4,0,0,20,0,0,"Kollokvium (K)","ötfokozatú","Elsődleges tanterv: kötelező - AM, KE, spec. köt. - KT\nTovábbi tanterv:",null,null,null,null,null,null,null,null,"Kötelező:\nAjánlott: "]
["Lukács Diána Anyagszerkezeti vizsgálatok laborgyakorlat","Anyagszerkezeti vizsgálatok laborgyakorlat","Materials Structure Elucidation Methods Laboratory Practice","Anyagszerkezeti vizsgálatok","kötelező","Lukács Diána","Természettudományi Központ",null,"x",null,3,0,0,3,null,null,null,"Folyamatos számonkérés (F)","ötfokozatú","Elsődleges tanterv: AM\nTovábbi tanterv:",null,null,null,null,null,null,null,null,"Kötelező:\nAjánlott: "]
["Dr. Kovács Kristóf Anyagtudomány","Anyagtudomány","Materials Science"," ","kötelező, választható szakmai tárgy","Dr. Kovács Kristóf","Műszaki Tudományok Kutató-Fejlesztő Központ","x",null,null,3,2,0,0,10,0,0,"Kollokvium (K)","ötfokozatú","Elsődleges tanterv: köteleő - AM, GM, KM, MM, VM, választható szakmai - KE\nTovábbi tanterv:",null,null,null,null,null,null,null,null,"Kötelező:\nAjánlott: "]
["Horváth Krisztián Anyagvizsgálati módszerek","Anyagvizsgálati módszerek","Materials Testing Methods","Fizika II.","specializáción kötelező","Horváth Krisztián","Természettudományi Központ","x","x",null,3,0,0,3,0,0,15,"Folyamatos számonkérés (F)","ötfokozatú","Elsődleges tanterv: GM, ME\nTovábbi tanterv:",null,null,null,null,null,null,null,null,"Kötelező:\nAjánlott: "]
["Dr. Horváth Pál Áramlás- és hőtechnikai gépek laborgyakorlat","Áramlás- és hőtechnikai gépek laborgyakorlat","Fluid and Heat Engineering Machinery Laboratory Practice","Műszaki áramlás- és hőtan II.","specializáción kötelező","Dr. Horváth Pál","Műszaki Tudományok Kutató-Fejlesztő Központ",null,"x",null,3,0,0,2,0,0,10,"Félévközi jegy (É)","ötfokozatú","Elsődleges tanterv: GM\nTovábbi tanterv:",null,null,null,null,null,null,null,null,"Kötelező:\nAjánlott: "]
["Dr. Pósfai Mihály Ásvány- és kőzettan","Ásvány- és kőzettan","Mineralogy and Petrology",null,"kötelező","Dr. Pósfai Mihály","Bio-nanotechnológiai és Műszaki Kémiai Kutatóintézet","x",null,null,3,2,0,0,null,null,null,"Folyamatos számonkérés (F)","ötfokozatú","Elsődleges tanterv: KE\nTovábbi tanterv:",null,null,null,null,null,null,null,null,"Kötelező:\nAjánlott: "]
["Dr. Miskolczi Norbert Ásványolaj technológia laborgyakorlat","Ásványolaj technológia laborgyakorlat","Petroleum Processing Laboratory Practice","Technológiai alapismeretek, Munkavédelem","specializáción kötelező","Dr. Miskolczi Norbert","Bio-, Környezet- és Vegyészmérnöki Kutató-Fejlesztő Központ",null,"x",null,3,0,0,3,null,null,null,null,"ötfokozatú","Elsődleges tanterv: VM\nTovábbi tanterv:",null,null,null,null,null,null,null,null,"Kötelező:\nAjánlott: "]
["Dr. Járvás Gábor Bioanalitika","Bioanalitika","Bioanalytics","Biomérnöki műveletek I. ","választható differenciált szakmai tárgy","Dr. Járvás Gábor","Bio-nanotechnológiai és Műszaki Kémiai Kutatóintézet","x",null,null,9,2,2,2,null,null,null,"Vizsga (V)","ötfokozatú","Elsődleges tanterv: BM\nTovábbi tanterv:",null,null,null,null,null,null,null,null,"Kötelező:\nAjánlott: "]
["Koók László Bioelektrokémiai rendszerek","Bioelektrokémiai rendszerek","Bioelectrochemical Systems","Biomérnöki műveletek I. ","választható differenciált szakmai tárgy","Koók László","Bio-, Környezet- és Vegyészmérnöki Kutató-Fejlesztő Központ","x",null,null,9,2,2,2,null,null,null,"Vizsga (V)","ötfokozatú","Elsődleges tanterv: BM\nTovábbi tanterv:",null,null,null,null,null,null,null,null,"Kötelező:\nAjánlott: "]
["Dr. Járvás Gábor Bioinformatika","Bioinformatika","Bioinformatics","Biomérnöki műveletek I. ","választható differenciált szakmai tárgy","Dr. Járvás Gábor","Bio-nanotechnológiai és Műszaki Kémiai Kutatóintézet",null,"x",null,9,2,2,2,null,null,null,"Vizsga (V)","ötfokozatú","Elsődleges tanterv: BM\nTovábbi tanterv:",null,null,null,null,null,null,null,null,"Kötelező:\nAjánlott: "]
["Dr. Nemestóthy Béla Nándor Biokatalizátorok gyakorlati alkalmazása","Biokatalizátorok gyakorlati alkalmazása","Practical Application of Biocatalysts","Biomérnöki műveletek I. ","választható differenciált szakmai tárgy","Dr. Nemestóthy Béla Nándor","Bio-, Környezet- és Vegyészmérnöki Kutató-Fejlesztő Központ","x",null,null,9,2,2,2,null,null,null,"Vizsga (V)","ötfokozatú","Elsődleges tanterv: BM\nTovábbi tanterv:",null,null,null,null,null,null,null,null,"Kötelező:\nAjánlott: "]
["Dr. Tóth Gábor Biokatalízis a könnyűiparban","Biokatalízis a könnyűiparban","Biocatalysis in Light Industry",null,"választható differenciált szakmai tárgy","Dr. Tóth Gábor","Bio-, Környezet- és Vegyészmérnöki Kutató-Fejlesztő Központ","x",null,null,3,2,0,0,null,null,null,"Félévközi jegy (É)","ötfokozatú","Elsődleges tanterv: BM\nTovábbi tanterv:",null,null,null,null,null,null,null,null,"Kötelező:\nAjánlott: "]
["Bélafiné dr. Bakó Katalin Biokatalízis az élelmiszeriparban","Biokatalízis az élelmiszeriparban","Biocatalysis in Food Industry",null,"választható differenciált szakmai tárgy","Bélafiné dr. Bakó Katalin","Bio-, Környezet- és Vegyészmérnöki Kutató-Fejlesztő Központ",null,"x",null,3,2,0,0,null,null,null,"Félévközi jegy (É)","ötfokozatú","Elsődleges tanterv: BM\nTovábbi tanterv:",null,null,null,null,null,null,null,null,"Kötelező:\nAjánlott: "]
["Skodáné Dr. Földes Rita Biokémia","Biokémia","Biochemistry","Szerves kémia, Szerves és biokémia alapjai","kötelező, specializáción kötelező","Skodáné Dr. Földes Rita","Természettudományi Központ",null,"x",null,3,2,0,0,10,0,0,"Vizsga (V)","ötfokozatú","Elsődleges tanterv: kötelező - BM, KE, spec. köt. - KT\nTovábbi tanterv:",null,null,null,null,null,null,null,null,"Kötelező:\nAjánlott: "]
["Dr. Lakk-Bogáth Dóra Biokémia laborgyakorlat","Biokémia laborgyakorlat","Biochemistry Laboratory Practice",null,"választható differenciált szakmai tárgy","Dr. Lakk-Bogáth Dóra","Természettudományi Központ","x",null,null,3,0,0,2,null,null,null,"Folyamatos számonkérés (F)","ötfokozatú","Elsődleges tanterv: BM\nTovábbi tanterv:",null,null,null,null,null,null,null,null,"Kötelező:\nAjánlott: "]
["Dr. Stenger-Kovács Csilla Biológia I. ","Biológia I. ","Biology I.",null,"kötelező","Dr. Stenger-Kovács Csilla","Természettudományi Központ","x",null,null,6,4,0,0,20,0,0,"Vizsga (V)","ötfokozatú","Elsődleges tanterv: BM, KM, KT\nTovábbi tanterv:",null,null,null,null,null,null,null,null,"Kötelező:\nAjánlott: "]
["Dr. Stenger-Kovács Csilla Biológia II.","Biológia II.","Biology II.","Biológia I.","kötelező, választható szakmai tárgy","Dr. Stenger-Kovács Csilla","Természettudományi Központ",null,null,"x",6,2,0,2,10,0,10,"Vizsga (V)","ötfokozatú","Elsődleges tanterv: BM, KE, KT\nTovábbi tanterv:",null,null,null,null,null,null,null,null,"Kötelező:\nAjánlott: "]
["Dr. Stenger-Kovács Csilla Biológia szigorlat (BMBSc)","Biológia szigorlat (BMBSc)","Biology comprehensive examination",null,"kötelező","Dr. Stenger-Kovács Csilla","Természettudományi Központ",null,"x",null,0,null,null,null,null,null,null,"Szigorlat (Sz)","ötfokozatú","Elsődleges tanterv: BM\nTovábbi tanterv:",null,null,null,null,null,null,null,null,"Kötelező:\nAjánlott: "]
["Dr. Bíró Ildikó Biológiai lehetőségek a vízkezelésben","Biológiai lehetőségek a vízkezelésben","Biological Possibilities for Water Treatment","Vízmikrobiológia","specializáción kötelező","Dr. Bíró Ildikó","Soós Ernő Kutató-Fejlesztő Központ",null,"x",null,3,0,2,0,0,10,0,"Folyamatos számonkérés (F)","ötfokozatú","Elsődleges tanterv: VZUBA\nTovábbi tanterv:",null,null,null,null,null,null,null,null,"Kötelező:\nAjánlott: "]
["Bélafiné dr. Bakó Katalin Biomérnöki alapszak nyári szakmai gyakorlat ","Biomérnöki alapszak nyári szakmai gyakorlat ","Practical training",null,"kötelező","Bélafiné dr. Bakó Katalin","Bio-, Környezet- és Vegyészmérnöki Kutató-Fejlesztő Központ","x",null,null,0,0,0,0,null,null,null,null,"ötfokozatú","Elsődleges tanterv: BM\nTovábbi tanterv:",null,null,null,null,null,null,null,null,"Kötelező:\nAjánlott: "]
["Bélafiné dr. Bakó Katalin Biomérnöki folyamatok","Biomérnöki folyamatok","Bioengineering Processes","Biomérnöki műveletek I. ","választható differenciált szakmai tárgy","Bélafiné dr. Bakó Katalin","Bio-, Környezet- és Vegyészmérnöki Kutató-Fejlesztő Központ",null,"x",null,6,2,0,2,null,null,null,"Vizsga (V)","ötfokozatú","Elsődleges tanterv: BM\nTovábbi tanterv:",null,null,null,null,null,null,null,null,"Kötelező:\nAjánlott: "]
["Bélafiné dr. Bakó Katalin Biomérnöki műveletek","Biomérnöki műveletek","Bioengineering Operations",null,"specializáción kötelező","Bélafiné dr. Bakó Katalin","Bio-, Környezet- és Vegyészmérnöki Kutató-Fejlesztő Központ","x",null,null,3,2,0,0,10,0,0,"Kollokvium (K)","ötfokozatú","Elsődleges tanterv: VZUBA\nTovábbi tanterv:",null,null,null,null,null,null,null,null,"Kötelező:\nAjánlott: "]
["Bélafiné dr. Bakó Katalin Biomérnöki műveletek I.","Biomérnöki műveletek I.","Bioengineering Operations I.","Művelettan","kötelező","Bélafiné dr. Bakó Katalin","Bio-, Környezet- és Vegyészmérnöki Kutató-Fejlesztő Központ","x",null,null,12,2,2,4,null,null,null,"Vizsga (V)","ötfokozatú","Elsődleges tanterv: BM\nTovábbi tanterv:",null,null,null,null,null,null,null,null,"Kötelező:\nAjánlott: "]
["Bélafiné dr. Bakó Katalin Biomérnöki műveletek II.","Biomérnöki műveletek II.","Bioengineering Operations II.","Művelettan","kötelező","Bélafiné dr. Bakó Katalin","Bio-, Környezet- és Vegyészmérnöki Kutató-Fejlesztő Központ",null,"x",null,12,4,0,4,null,null,null,"Vizsga (V)","ötfokozatú","Elsődleges tanterv: BM\nTovábbi tanterv:",null,null,null,null,null,null,null,null,"Kötelező:\nAjánlott: "]
["Dr. Liker András Biometria, bioinformatika","Biometria, bioinformatika","Biometry, Bioinformatics","Matematika I.","specializáción kötelező","Dr. Liker András","Természettudományi Központ","x",null,null,3,1,1,0,5,5,0,"Folyamatos számonkérés (F)","ötfokozatú","Elsődleges tanterv: specializáción kötelező - KT\nTovábbi tanterv:",null,null,null,null,null,null,null,null,"Kötelező:\nAjánlott: "]
["Dr. Hubai Katalin Eszter Botanika","Botanika","Botany","Biológia I. ","specializáción kötelező","Dr. Hubai Katalin Eszter","Természettudományi Központ",null,"x",null,3,1,1,0,5,5,0,"Vizsga (V)","ötfokozatú","Elsődleges tanterv: KT\nTovábbi tanterv:",null,null,null,null,null,null,null,null,"Kötelező:\nAjánlott: "]
[" CAD tervezés","CAD tervezés","Computer Aided Design","Műszaki rajz és ábrázoló geometria","kötelező",null,"Műszaki Tudományok Kutató-Fejlesztő Központ",null,"x",null,6,0,0,4,0,0,20,"Folyamatos számonkérés (F)","ötfokozatú","Elsődleges tanterv: GM, MM\nTovábbi tanterv:",null,null,null,null,null,null,null,null,"Kötelező:\nAjánlott: "]
["Dr. Gyurika István Gábor CNC és CAM programozás","CNC és CAM programozás","CNC and CAM Programming","Gépgyártástechnológia II","specializáción kötelező","Dr. Gyurika István Gábor","Műszaki Tudományok Kutató-Fejlesztő Központ","x",null,null,9,2,0,4,10,0,20,"Félévközi jegy (É)","ötfokozatú","Elsődleges tanterv: GM\nTovábbi tanterv:",null,null,null,null,null,null,null,null,"Kötelező:\nAjánlott: "]
["Gurin Péter Digitális elektronika","Digitális elektronika","\nDigital Electronics","Fizika II. (GM), Elektronika (MM)","kötelező/specializáción kötelező","Gurin Péter","Természettudományi Központ","x",null,null,3,0,0,2,0,0,10,"Folyamatos számonkérés (F)","ötfokozatú","Elsődleges tanterv:  kötelező - MM, spec. köt. - GM\nTovábbi tanterv:",null,null,null,null,null,null,null,null,"Kötelező:\nAjánlott: "]
["Dr. Gyurika István Gábor Digitális gyártás és rugalmas gyártórendszerek","Digitális gyártás és rugalmas gyártórendszerek","Digital Manufacturing and FMS Systems","Gépgyártástechnológia II","specializáción kötelező","Dr. Gyurika István Gábor","Műszaki Tudományok Kutató-Fejlesztő Központ",null,"x",null,9,2,2,2,10,10,10,"Vizsga (V)","ötfokozatú","Elsődleges tanterv: GM\nTovábbi tanterv:",null,null,null,null,null,null,null,null,"Kötelező:\nAjánlott: "]
["Dr. Gugolya Zoltán Elektronika","Elektronika","Electronics","Fizika I. ","kötelező","Dr. Gugolya Zoltán","Műszaki Tudományok Kutató-Fejlesztő Központ",null,"x",null,6,2,2,0,10,10,0,"Kollokvium (K)","ötfokozatú","Elsődleges tanterv: GM, MM\nTovábbi tanterv:",null,null,null,null,null,null,null,null,"Kötelező:\nAjánlott: "]
["Dr. Lukács Attila Elektronikai technológia I.","Elektronikai technológia I.","Electronics Technology I.","Folyamatirányítás alapjai","specializáción kötelező","Dr. Lukács Attila","Mechatronikai Képzési és Kutatási Intézet","x",null,null,6,3,1,0,15,5,0,"Kollokvium (K)","ötfokozatú","Elsődleges tanterv: MM\nTovábbi tanterv:",null,null,null,null,null,null,null,null,"Kötelező:\nAjánlott: "]
["Dr. Lukács Attila Elektronikai technológia II.","Elektronikai technológia II.","Electronics Technology II.","Elektronikai technológia I.","specializáción kötelező","Dr. Lukács Attila","Mechatronikai Képzési és Kutatási Intézet",null,"x",null,3,2,0,0,10,0,0,"Kollokvium (K)","ötfokozatú","Elsődleges tanterv: MM\nTovábbi tanterv:",null,null,null,null,null,null,null,null,"Kötelező:\nAjánlott: "]
["Dr. Domokos Endre Gábor Életciklus elemzés","Életciklus elemzés","Life Cycle Analysis","Kemometria","kötelező","Dr. Domokos Endre Gábor","Bio-, Környezet- és Vegyészmérnöki Kutató-Fejlesztő Központ",null,"x",null,3,0,2,0,null,null,null,"Félévközi jegy (É)","ötfokozatú","Elsődleges tanterv: KM\nTovábbi tanterv:",null,null,null,null,null,null,null,null,"Kötelező:\nAjánlott: "]
["Dr. Egedy Attila Eljárástervezés","Eljárástervezés","Process Design","Fizikai kémia","kötelező","Dr. Egedy Attila","Bio-, Környezet- és Vegyészmérnöki Kutató-Fejlesztő Központ",null,"x",null,6,2,2,0,null,null,null,null,"ötfokozatú","Elsődleges tanterv: VM\nTovábbi tanterv:",null,null,null,null,null,null,null,null,"Kötelező:\nAjánlott: "]
["Horváth Krisztián Elválasztástudományi módszerek","Elválasztástudományi módszerek","Separation Science","Kémiai analízis I.","specializáción kötelező","Horváth Krisztián","Természettudományi Központ","x",null,null,3,2,0,0,null,null,null,"Vizsga (V)","ötfokozatú","Elsődleges tanterv: AM\nTovábbi tanterv:",null,null,null,null,null,null,null,null,"Kötelező:\nAjánlott: "]
["Dr. Sebestyén Viktor Energiagazdálkodás és környezetvédelem","Energiagazdálkodás és környezetvédelem","Energy Management and Environmental Protection","Fizika I.","kötelező (KM), specializáción kötelező (KT)","Dr. Sebestyén Viktor","Bio-, Környezet- és Vegyészmérnöki Kutató-Fejlesztő Központ","x","x",null,3,2,0,0,10,0,0,"Vizsga (V)","ötfokozatú","Elsődleges tanterv: kötelező - KM, specializáción kötelező - KT\nTovábbi tanterv:",null,null,null,null,null,null,null,null,"Kötelező:\nAjánlott: "]
["Dr. Bakonyi Péter Enzimes technológiák","Enzimes technológiák","Enzyme Technologies",null,"specializáción kötelező","Dr. Bakonyi Péter","Bio-nanotechnológiai és Műszaki Kémiai Kutatóintézet","x",null,null,3,2,0,0,10,0,0,"Folyamatos számonkérés (F)","ötfokozatú","Elsődleges tanterv: VZUBA\nTovábbi tanterv:",null,null,null,null,null,null,null,null,"Kötelező:\nAjánlott: "]
["Dr. Németh Csaba Fizika I.","Fizika I.","Physics I."," ","kötelező","Dr. Németh Csaba","Természettudományi Központ","x",null,null,6,2,2,0,10,10,0,"Kollokvium (K)","ötfokozatú","Elsődleges tanterv: AM, BM, GM, KE, KT, KM, MM, VM, VZUBA\nTovábbi tanterv:",null,null,null,null,null,null,null,null,"Kötelező:\nAjánlott: "]
["Dr. Varga Szabolcs Fizika II.","Fizika II.","Physics II","Fizika I.","kötelező","Dr. Varga Szabolcs","Természettudományi Központ",null,"x",null,6,2,0,3,10,0,15,"Vizsga (V)","ötfokozatú","Elsődleges tanterv: AM, BM, GM, KE, MM, VM, VZUBA\nTovábbi tanterv:",null,null,null,null,null,null,null,null,"Kötelező:\nAjánlott: "]
["Dr. Lukács Pál Fizikai anyagkezelés és szilikátipari gépek","Fizikai anyagkezelés és szilikátipari gépek","Physical Materials Treatment and Machines for Silicate Industry",null,"specializáción kötelező","Dr. Lukács Pál","Műszaki Tudományok Kutató-Fejlesztő Központ",null,"x",null,3,2,0,0,10,0,0,"Vizsga (V)","ötfokozatú","Elsődleges tanterv: GM\nTovábbi tanterv:",null,null,null,null,null,null,null,null,"Kötelező:\nAjánlott: "]
["Dr. Kristóf Tamás Fizikai kémia","Fizikai kémia","Physical Chemistry","Matematika I., Fizika I., A kémia alapjai","kötelező","Dr. Kristóf Tamás","Természettudományi Központ","x",null,null,6,4,0,0,null,null,null,"Kollokvium (K)","ötfokozatú","Elsődleges tanterv: AM, BM, KE, KM, VM\nTovábbi tanterv:",null,null,null,null,null,null,null,null,"Kötelező:\nAjánlott: "]
["Dr. Horváth Krisztián/Dr. Kristóf Tamás?? Fizikai kémia és analitikai kémia szigorlat","Fizikai kémia és analitikai kémia szigorlat","Physical Chemistry and Analytical Chemistry Comprehensive Examination","Fizikai kémia gyakorlat, (Kémiai analízis II.)","kötelező","Dr. Horváth Krisztián/Dr. Kristóf Tamás??","Természettudományi Központ","x",null,null,0,0,0,0,null,null,null,"Szigorlat (SZ)","ötfokozatú","Elsődleges tanterv: KE\nTovábbi tanterv:",null,null,null,null,null,null,null,null,"Kötelező:\nAjánlott: "]
["Dr. Valiskó Mónika Fizikai kémia gyakorlat","Fizikai kémia gyakorlat","Problem Solving in Physical Chemistry","Matematika I., Fizika I., A kémia alapjai","kötelező","Dr. Valiskó Mónika","Természettudományi Központ","x",null,null,3,0,2,0,null,null,null,"Folyamatos számonkérés (F)","ötfokozatú","Elsődleges tanterv: KE\nTovábbi tanterv:",null,null,null,null,null,null,null,null,"Kötelező:\nAjánlott: "]
["Dr. Valiskó Mónika Fizikai kémia laboratóriumi gyakorlat","Fizikai kémia laboratóriumi gyakorlat","Laboratory Practice in Physical Chemistry","Matematika I., Fizika I., A kémia alapjai","kötelező","Dr. Valiskó Mónika","Természettudományi Központ","x",null,null,3,0,0,3,null,null,null,"Folyamatos számonkérés (F)","ötfokozatú","Elsődleges tanterv: AM, KE, VM\nTovábbi tanterv:",null,null,null,null,null,null,null,null,"Kötelező:\nAjánlott: "]
["Dr. Egedy Attila Folyamatirányítás alapjai","Folyamatirányítás alapjai","Process control","Fizika II.","kötelező","Dr. Egedy Attila","Bio-, Környezet- és Vegyészmérnöki Kutató-Fejlesztő Központ","x","x",null,6,4,0,0,20,0,0,"Folyamatos számonkérés (F)","ötfokozatú","Elsődleges tanterv: GM, MM, VM\nTovábbi tanterv:",null,null,null,null,null,null,null,null,"Kötelező:\nAjánlott: "]
["Dr. Németh Sándor Folyamatmérnöki alapismeretek","Folyamatmérnöki alapismeretek","Introduction to Process Engineering","Folyamatirányítás alapjai","specializáción kötelező","Dr. Németh Sándor","Bio-, Környezet- és Vegyészmérnöki Kutató-Fejlesztő Központ","x",null,null,9,1,0,5,null,null,null,"Folyamatos számonkérés (F)","ötfokozatú","Elsődleges tanterv: MM\nTovábbi tanterv:",null,null,null,null,null,null,null,null,"Kötelező:\nAjánlott: "]
["Dr. Takács-Bárkányi Ágnes Folyamatmérnöki technikák alkalmazása","Folyamatmérnöki technikák alkalmazása","Advanced Algorithms in Process Engineering","Technológiai rendszerek modellezése","specializáción kötelező","Dr. Takács-Bárkányi Ágnes","Bio-, Környezet- és Vegyészmérnöki Kutató-Fejlesztő Központ","x",null,null,3,0,2,0,null,null,null,null,"ötfokozatú","Elsődleges tanterv: VM\nTovábbi tanterv:",null,null,null,null,null,null,null,null,"Kötelező:\nAjánlott: "]
["Dr. Varga Tamás Folyamatrendszerek elemzése","Folyamatrendszerek elemzése","Process System Analysis","Folyamatmérnöki alapismeretek","specializáción kötelező","Dr. Varga Tamás","Bio-, Környezet- és Vegyészmérnöki Kutató-Fejlesztő Központ",null,"x",null,9,2,0,4,null,null,null,"Félévközi jegy (É)","ötfokozatú","Elsődleges tanterv: MM\nTovábbi tanterv:",null,null,null,null,null,null,null,null,"Kötelező:\nAjánlott: "]
["Dr. Pósfai Mihály Földtudomány","Földtudomány","Earth Sciences",null,"kötelező","Dr. Pósfai Mihály","Bio-nanotechnológiai és Műszaki Kémiai Kutatóintézet","x",null,null,6,2,2,0,10,10,0,"Folyamatos számonkérés (F)","ötfokozatú","Elsődleges tanterv: KT\nTovábbi tanterv:",null,null,null,null,null,null,null,null,"Kötelező:\nAjánlott: "]
["Dr. Kovács Zsófia Földünk állapota","Földünk állapota","State of the Earth",null,"kötelező","Dr. Kovács Zsófia","Bio-nanotechnológiai és Műszaki Kémiai Kutatóintézet","x",null,null,3,2,0,0,10,0,0,"Vizsga (V)","ötfokozatú","Elsődleges tanterv: KT\nTovábbi tanterv:",null,null,null,null,null,null,null,null,"Kötelező:\nAjánlott: "]
["Dr. Galambos Ildikó Fürdővizek és termálvizek kezelése","Fürdővizek és termálvizek kezelése","Treatment of Bathing Waters and Thermal Waters",null,"specializáción kötelező","Dr. Galambos Ildikó","Soós Ernő Kutató-Fejlesztő Központ","x",null,null,3,0,2,0,0,10,0,"Folyamatos számonkérés (F)","ötfokozatú","Elsődleges tanterv: VZUBA\nTovábbi tanterv:",null,null,null,null,null,null,null,null,"Kötelező:\nAjánlott: "]
["Dr. Liker András Genetika és evolúcióbiológia","Genetika és evolúcióbiológia","Genetics and Evolutionary Biology","Ökológia","specializáción kötelező","Dr. Liker András","Természettudományi Központ",null,"x",null,6,4,0,0,20,0,0,"Félévközi jegy (É)","ötfokozatú","Elsődleges tanterv: KT\nTovábbi tanterv:",null,null,null,null,null,null,null,null,"Kötelező:\nAjánlott: "]
[" Geológiai alapok","Geológiai alapok","Basics of Geology",null,"kötelező",null,"Bio-nanotechnológiai és Műszaki Kémiai Kutatóintézet",null,"x",null,6,3,1,0,15,5,0,"Vizsga (V)","ötfokozatú","Elsődleges tanterv: VZUBA\nTovábbi tanterv:",null,null,null,null,null,null,null,null,"Kötelező:\nAjánlott: "]
["Dr. Horváth Pál Gépelemek és ábrázolás","Gépelemek és ábrázolás","Machine Elements and Representation"," ","kötelező","Dr. Horváth Pál","Műszaki Tudományok Kutató-Fejlesztő Központ","x",null,null,3,2,0,0,null,null,null,"Félévközi jegy (É)","ötfokozatú","Elsődleges tanterv: AM\nTovábbi tanterv:",null,null,null,null,null,null,null,null,"Kötelező:\nAjánlott: "]
[{"$f":"CONCATENATE(F67,\" \",B67)","v":"Dr. Gyurika István Gábor Gépgyártástechnológia I."},"Gépgyártástechnológia I.","Manufacturing technology II",null,"kötelező","Dr. Gyurika István Gábor","Műszaki Tudományok Kutató-Fejlesztő Központ",null,"x",null,6,2,0,2,10,0,10,"Kollokvium (K)","ötfokozatú","Elsődleges tanterv: GM, MM\nTovábbi tanterv:",null,null,null,null,null,null,null,null,"Kötelező:\nAjánlott: "]
["Dr. Gyurika István Gábor Gépgyártástechnológia II.","Gépgyártástechnológia II.","Manufacturing Technology II","Gépgyártástechnológia I","kötelező","Dr. Gyurika István Gábor","Műszaki Tudományok Kutató-Fejlesztő Központ","x",null,null,6,2,0,2,10,0,10,"Kollokvium (K)","ötfokozatú","Elsődleges tanterv: GM\nTovábbi tanterv:",null,null,null,null,null,null,null,null,"Kötelező:\nAjánlott: "]
["Dr. Gyurika István Gábor Gépszerkezettan I.","Gépszerkezettan I.","Machine Elements I.",null,"kötelező","Dr. Gyurika István Gábor","Műszaki Tudományok Kutató-Fejlesztő Központ","x",null,null,6,2,2,0,10,10,0,"Félévközi jegy (É)","ötfokozatú","Elsődleges tanterv: GM\nTovábbi tanterv:",null,null,null,null,null,null,null,null,"Kötelező:\nAjánlott: "]
["Dr. Gyurika István Gábor Gépszerkezettan II.","Gépszerkezettan II.","Machine Elements II.","Gépszerkezettan I.","kötelező","Dr. Gyurika István Gábor","Műszaki Tudományok Kutató-Fejlesztő Központ",null,"x",null,6,2,2,0,10,10,0,"Félévközi jegy (É)","ötfokozatú","Elsődleges tanterv: GM\nTovábbi tanterv:",null,null,null,null,null,null,null,null,"Kötelező:\nAjánlott: "]
["Dr. Járvás Gábor Glikomika","Glikomika","Glycomics","Biomérnöki műveletek I. ","választható differenciált szakmai tárgy","Dr. Járvás Gábor","Bio-nanotechnológiai és Műszaki Kémiai Kutatóintézet",null,"x",null,6,2,0,2,null,null,null,"Vizsga (V)","ötfokozatú","Elsődleges tanterv: BM\nTovábbi tanterv:",null,null,null,null,null,null,null,null,"Kötelező:\nAjánlott: "]
["Dr. Varga Csilla Gumik kémiája és gyártástechnológiája","Gumik kémiája és gyártástechnológiája","Rubber Chemistry and Processing","Szerves kémia","specializáción kötelező","Dr. Varga Csilla","Bio-, Környezet- és Vegyészmérnöki Kutató-Fejlesztő Központ",null,"x",null,3,2,0,0,null,null,null,"Kollokvium (K)","ötfokozatú","Elsődleges tanterv: AM\nTovábbi tanterv:",null,null,null,null,null,null,null,null,"Kötelező:\nAjánlott: "]
["Dr. Gyurika István Gábor Gyártástervezés","Gyártástervezés","Manufacturing Planning","Gépgyártástechnológia II","specializáción kötelező","Dr. Gyurika István Gábor","Műszaki Tudományok Kutató-Fejlesztő Központ",null,"x",null,6,2,0,2,10,0,10,"Félévközi jegy (É)","ötfokozatú","Elsődleges tanterv: GM\nTovábbi tanterv:",null,null,null,null,null,null,null,null,"Kötelező:\nAjánlott: "]
["Skodáné Dr. Földes Rita Gyógyszerkémia és szintézis tervezés","Gyógyszerkémia és szintézis tervezés","Pharmaceutical Chemistry",null,"választható differenciált szakmai tárgy","Skodáné Dr. Földes Rita","Természettudományi Központ",null,"x",null,6,2,2,0,null,null,null,"Vizsga (V)","ötfokozatú","Elsődleges tanterv: BM\nTovábbi tanterv:",null,null,null,null,null,null,null,null,"Kötelező:\nAjánlott: "]
["Dr. Horváth Pál Hidraulika és pneumatika","Hidraulika és pneumatika","Hidraulics and Pneumatics","Fizika II.,","kötelező/specializáción kötelező","Dr. Horváth Pál","Műszaki Tudományok Kutató-Fejlesztő Központ","x",null,null,3,1,0,2,5,0,10,"Félévközi jegy (É)","ötfokozatú","Elsődleges tanterv: kötelező - MM, spec.köt. - GM\nTovábbi tanterv:",null,null,null,null,null,null,null,null,"Kötelező:\nAjánlott: "]
["Dr. Bakonyi Péter Hidrogén technológiák és fejlesztéseik","Hidrogén technológiák és fejlesztéseik","Hydrogen Technologies and Their Developments","Biomérnöki műveletek I. ","választható differenciált szakmai tárgy","Dr. Bakonyi Péter","Bio-, Környezet- és Vegyészmérnöki Kutató-Fejlesztő Központ",null,"x",null,6,2,0,2,null,null,null,"Vizsga (V)","ötfokozatú","Elsődleges tanterv: BM\nTovábbi tanterv:",null,null,null,null,null,null,null,null,"Kötelező:\nAjánlott: "]
["Dr. Padisák Judit Hidrogeológia","Hidrogeológia","Hydrogeology",null,"kötelező","Dr. Padisák Judit","Természettudományi Központ","x",null,null,3,2,0,0,10,0,0,"Vizsga (V)","ötfokozatú","Elsődleges tanterv: KT\nTovábbi tanterv:",null,null,null,null,null,null,null,null,"Kötelező:\nAjánlott: "]
[" Hidrológia, hidroinformatika","Hidrológia, hidroinformatika","Hydrology, Hydroinformatics",null,"kötelező",null,"Soós Ernő Kutató-Fejlesztő Központ, Nagykanizsa","x",null,null,6,2,0,2,10,0,10,"Folyamatos számonkérés (F)","ötfokozatú","Elsődleges tanterv: VZUBA\nTovábbi tanterv:",null,null,null,null,null,null,null,null,"Kötelező:\nAjánlott: "]
["Dr. Kurdi Róbert Hulladékgazdálkodás","Hulladékgazdálkodás","Waste Management","Kemometria","kötelező","Dr. Kurdi Róbert","Bio-, Környezet- és Vegyészmérnöki Kutató-Fejlesztő Központ","x",null,null,9,3,3,0,null,null,null,"Vizsga (V)","ötfokozatú","Elsődleges tanterv: KM\nTovábbi tanterv:",null,null,null,null,null,null,null,null,"Kötelező:\nAjánlott: "]
[" Hulladékgazdálkodás","Hulladékgazdálkodás","Waste Management",null,"specializáción kötelező",null,"Soós Ernő Kutató-Fejlesztő Központ, Nagykanizsa",null,"x",null,3,2,0,0,null,null,null,"Vizsga (V)","ötfokozatú","Elsődleges tanterv: VZUBA\nTovábbi tanterv:",null,null,null,null,null,null,null,null,"Kötelező:\nAjánlott: "]
["Dr. Kurdi Róbert Hulladékgazdálkodás laborgyakorlat","Hulladékgazdálkodás laborgyakorlat","Waste Management Laboratory Practice","Hulladékgazdálkodás","kötelező","Dr. Kurdi Róbert","Bio-, Környezet- és Vegyészmérnöki Kutató-Fejlesztő Központ",null,"x",null,6,0,0,6,null,null,null,"Folyamatos számonkérés (F)","ötfokozatú","Elsődleges tanterv: KM\nTovábbi tanterv:",null,null,null,null,null,null,null,null,"Kötelező:\nAjánlott: "]
[" Hulladékgazdálkodás laborgyakorlat","Hulladékgazdálkodás laborgyakorlat","Waste Management Laboratory Practice","Hulladékgazdálkodás","specializáción kötelező",null,"Soós Ernő Kutató-Fejlesztő Központ, Nagykanizsa","x",null,null,3,0,0,2,null,null,null,"Folyamatos számonkérés (F)","ötfokozatú","Elsődleges tanterv: VZUBA\nTovábbi tanterv:",null,null,null,null,null,null,null,null,"Kötelező:\nAjánlott: "]
[" Időgazdálkodás","Időgazdálkodás","Time Management",null,"kötelező",null,"GTK?","x",null,null,0,null,null,null,null,null,null,null,"ötfokozatú","Elsődleges tanterv: BM\nTovábbi tanterv:",null,null,null,null,null,null,null,null,"Kötelező:\nAjánlott: "]
["Dr. Korim Tamás Igazságügyi vizsgálatok","Igazságügyi vizsgálatok","Forensic Investigations","Anyagtudomány","specializáción kötelező","Dr. Korim Tamás","Műszaki Tudományok Kutató-Fejlesztő Központ",null,"x",null,3,2,0,0,null,null,null,"Vizsga (V)","ötfokozatú","Elsődleges tanterv: AM\nTovábbi tanterv:",null,null,null,null,null,null,null,null,"Kötelező:\nAjánlott: "]
["Dr. Ulbert Zsolt Informatikai alapismeretek","Informatikai alapismeretek","Computer Science for Engineers"," ","kötelező","Dr. Ulbert Zsolt","Bio-, Környezet- és Vegyészmérnöki Kutató-Fejlesztő Központ","x",null,null,3,0,2,0,0,10,0,"Folyamatos számonkérés (F)","ötfokozatú","Elsődleges tanterv: AM, BM, GM, KE, KT, KM, ME, VM, VZUBA\nTovábbi tanterv:",null,null,null,null,null,null,null,null,"Kötelező:\nAjánlott: "]
["Bélafiné dr. Bakó Katalin Integrált biotechnikák","Integrált biotechnikák","Integrated Biotechniques","Biomérnöki műveletek I. ","választható differenciált szakmai tárgy","Bélafiné dr. Bakó Katalin","Bio-, Környezet- és Vegyészmérnöki Kutató-Fejlesztő Központ",null,"x",null,9,2,2,2,null,null,null,"Vizsga (V)","ötfokozatú","Elsődleges tanterv: BM\nTovábbi tanterv:",null,null,null,null,null,null,null,null,"Kötelező:\nAjánlott: "]
[" Integrált gyártórendszerek","Integrált gyártórendszerek","Integrated Manufacturing Systems","Gépgyártástechnológia II.","specializáción kötelező",null,"Műszaki Tudományok Kutató-Fejlesztő Központ","x",null,null,3,2,0,0,10,0,0,"Vizsga (V)","ötfokozatú","Elsődleges tanterv: GM\nTovábbi tanterv:",null,null,null,null,null,null,null,null,"Kötelező:\nAjánlott: "]
[" Integrált gyártórendszerek","Integrált gyártórendszerek","Integrated Manufacturing Systems",null,"specializáción kötelező",null,"Műszaki Tudományok Kutató-Fejlesztő Központ",null,"X",null,6,2,2,0,null,null,null,"Folyamatos számonkérés (F)","ötfokozatú","Elsődleges tanterv: MM\nTovábbi tanterv:",null,null,null,null,null,null,null,null,"Kötelező:\nAjánlott: "]
["Dr. Galambos Ildikó Iparágak és közüzemek speciális víz- és szennyvízkezelési kérdései","Iparágak és közüzemek speciális víz- és szennyvízkezelési kérdései","Special Water and Wastewater Treatment Requirements of Different Industrial Areas",null,"kötelező (VZUBA), specializáción kötelező (GM)","Dr. Galambos Ildikó","Soós Ernő Kutató-Fejlesztő Központ, Nagykanizsa","x",null,null,6,0,4,0,0,20,0,"Félévközi jegy (É)","ötfokozatú","Elsődleges tanterv: kötelező - VZUBA, specializáción kötelező - GM\nTovábbi tanterv:",null,null,null,null,null,null,null,null,"Kötelező:\nAjánlott: "]
["Dr. Bocsi Róbert Ipari folyamatok labor","Ipari folyamatok labor","Industrial Processes Laboratory Practice","Művelettan, Műszaki áramlás- és hőtan I., Technológiai alapismeretek","kötelező","Dr. Bocsi Róbert","Bio-, Környezet- és Vegyészmérnöki Kutató-Fejlesztő Központ","x",null,null,9,0,0,9,null,null,null,null,"ötfokozatú","Elsődleges tanterv: VM\nTovábbi tanterv:",null,null,null,null,null,null,null,null,"Kötelező:\nAjánlott: "]
["Dr. Miskolczi Norbert Ipari katalízis","Ipari katalízis","Industrial Catalysis","Technológiai alapismeretek","specializáción kötelező","Dr. Miskolczi Norbert","Bio-, Környezet- és Vegyészmérnöki Kutató-Fejlesztő Központ",null,"x",null,3,2,0,0,null,null,null,null,"ötfokozatú","Elsődleges tanterv: VM\nTovábbi tanterv:",null,null,null,null,null,null,null,null,"Kötelező:\nAjánlott: "]
["Dr. Hodai Zoltán Ipari kemencék és szárítók I","Ipari kemencék és szárítók I","Industrial Furnaces and Driers II.",null,"specializáción kötelező","Dr. Hodai Zoltán","Bio-, Környezet- és Vegyészmérnöki Kutató-Fejlesztő Központ",null,"x",null,3,1,1,0,5,5,0,"Vizsga (V)","ötfokozatú","Elsődleges tanterv: GM\nTovábbi tanterv:",null,null,null,null,null,null,null,null,"Kötelező:\nAjánlott: "]
["Dr. Hodai Zoltán Ipari kemencék és szárítók II","Ipari kemencék és szárítók II","Industrial furnaces and driers II.","Ipari kemencék és szárítók I","specializáción kötelező","Dr. Hodai Zoltán","Bio-, Környezet- és Vegyészmérnöki Kutató-Fejlesztő Központ","x",null,null,3,0,0,2,0,0,10,"Félévközi jegy (É)","ötfokozatú","Elsődleges tanterv: GM\nTovábbi tanterv:",null,null,null,null,null,null,null,null,"Kötelező:\nAjánlott: "]
[" Iparjogvédelem alapjai","Iparjogvédelem alapjai","Introduction to Industrial Property Rights","-","kötelező",null,"Bio-, Környezet- és Vegyészmérnöki Kutató-Fejlesztő Központ",null,"x",null,3,2,0,0,null,null,null,"Folyamatos számonkérés (F)","ötfokozatú","Elsődleges tanterv: AM, BM, KM, VM\nTovábbi tanterv:",null,null,null,null,null,null,null,null,"Kötelező:\nAjánlott: "]
[" Járműmechatronika","Járműmechatronika","Vehicle Mechatronics","Fizika II.","specializáción kötelező",null,"Műszaki Tudományok Kutató-Fejlesztő Központ",null,"x",null,3,2,0,0,10,0,0,"Kollokvium (K)","ötfokozatú","Elsődleges tanterv: MM\nTovábbi tanterv:",null,null,null,null,null,null,null,null,"Kötelező:\nAjánlott: "]
["Dr. Horváth Barnabás Jelfeldolgozás","Jelfeldolgozás","Signal Processing","Elektronika","kötelező (MM), specializáción kötelező (GM)","Dr. Horváth Barnabás","Műszaki Tudományok Kutató-Fejlesztő Központ",null,"x",null,3,2,0,0,10,0,0,"Kollokvium (K)","ötfokozatú","Elsődleges tanterv: kötelező - MM, spec. köt. - GM\nTovábbi tanterv:",null,null,null,null,null,null,null,null,"Kötelező:\nAjánlott: "]
[" Jogi, Európai Uniós és honvédelmi ismeretek","Jogi, Európai Uniós és honvédelmi ismeretek","Introduction to Judicial Systems, EU and National Defense Studies",null,"kötelező",null,"Soós Ernő Kutató-Fejlesztő Központ, Nagykanizsa",null,"x",null,6,3,1,0,15,5,0,"Vizsga (V)","ötfokozatú","Elsődleges tanterv: VZUBA\nTovábbi tanterv:",null,null,null,null,null,null,null,null,"Kötelező:\nAjánlott: "]
["Dr. Bartus Péter Jogi alapismeretek","Jogi alapismeretek","Introduction to Law",null,"kötelező","Dr. Bartus Péter","Bio-, Környezet- és Vegyészmérnöki Kutató-Fejlesztő Központ",null,"x",null,3,2,0,0,10,0,0,"Folyamatos számonkérés (F)","ötfokozatú","Elsődleges tanterv: MM\nTovábbi tanterv:",null,null,null,null,null,null,null,null,"Kötelező:\nAjánlott: "]
["Dr. Vágvölgyi Veronika Kémiai analízis I.","Kémiai analízis I.","Chemical Analysis I.","Általános és szervetlen kémia","kötelező","Dr. Vágvölgyi Veronika","Természettudományi Központ",null,"x",null,6,2,0,3,10,0,15,"Vizsga (V)","ötfokozatú","Elsődleges tanterv: AM, BM, KE, KT, KM, VM\nTovábbi tanterv:",null,null,null,null,null,null,null,null,"Kötelező:\nAjánlott: "]
["Horváth Krisztián Kémiai analízis II.","Kémiai analízis II.","Chemical Analysis II.","Kémiai analízis I.","kötelező, specializáción kötelező","Horváth Krisztián","Természettudományi Központ","x",null,null,6,0,2,3,0,10,15,"Folyamatos számonkérés (F)","ötfokozatú","Elsődleges tanterv: kötelező - AM, KE, spec. köt. - KT\nTovábbi tanterv:",null,null,null,null,null,null,null,null,"Kötelező:\nAjánlott: "]
["Dr. Miskolczi Norbert Kémiai technológiák","Kémiai technológiák","Chemical Technologies","Művelettan","specializáción kötelező","Dr. Miskolczi Norbert","Bio-, Környezet- és Vegyészmérnöki Kutató-Fejlesztő Központ","x",null,null,12,4,0,6,null,null,null,"Folyamatos számonkérés (F)","ötfokozatú","Elsődleges tanterv: VM\nTovábbi tanterv:",null,null,null,null,null,null,null,null,"Kötelező:\nAjánlott: "]
["Dr. Simon József Kemometria","Kemometria","Chemometrics","Kémiai analízis I., Matematika I.","kötelező/specializáción kötelező/választható differenciált szakmai tárgy","Dr. Simon József","Természettudományi Központ","x","x","x",3,0,2,0,null,null,null,"Folyamatos számonkérés (F)","ötfokozatú","Elsődleges tanterv: kötelező - KE, KM, spec. köt. - AM, választható: BM\nTovábbi tanterv:",null,null,null,null,null,null,null,null,"Kötelező:\nAjánlott: "]
["Kristófné dr. Makó Éva Kerámia-, üveg- és kötőanyagipari nyers és alapanyagok","Kerámia-, üveg- és kötőanyagipari nyers és alapanyagok","Raw and Binding Materials for Ceramic, Glass and Cement Industry","Anyagtudomány","kötelező","Kristófné dr. Makó Éva","Műszaki Tudományok Kutató-Fejlesztő Központ",null,"x",null,3,2,0,0,null,null,null,"Kollokvium (K)","ötfokozatú","Elsődleges tanterv: AM\nTovábbi tanterv:",null,null,null,null,null,null,null,null,"Kötelező:\nAjánlott: "]
["Dr. Korim Tamás Kerámiák és kötőanyagok technológiája","Kerámiák és kötőanyagok technológiája","Technology of Ceramics and Binding Materials","Anyagtudomány","kötelező/spec. kötelező","Dr. Korim Tamás","Műszaki Tudományok Kutató-Fejlesztő Központ","x",null,null,6,3,1,0,15,5,0,"Kollokvium (K)","ötfokozatú","Elsődleges tanterv: kötelező - AM, spec. köt. - GM\nTovábbi tanterv:",null,null,null,null,null,null,null,null,"Kötelező:\nAjánlott: "]
["Dr. Valiskó Mónika Kolloidika","Kolloidika","Colloid Chemistry","Általános és szervetlen kémia","kötelező (KE), specializáción kötelező (KT)","Dr. Valiskó Mónika","Természettudományi Központ",null,"x",null,6,2,0,3,10,0,15,"Vizsga (V)","ötfokozatú","Elsődleges tanterv: kötelező - KE) specializáción kötelező - KT\nTovábbi tanterv:",null,null,null,null,null,null,null,null,"Kötelező:\nAjánlott: "]
["Dr. Tóth-Nagy Georgina Kommunikációs alapismeretek","Kommunikációs alapismeretek","Basic Communication Skills",null,"kötelező","Dr. Tóth-Nagy Georgina","Bio-, Környezet- és Vegyészmérnöki Kutató-Fejlesztő Központ","x",null,null,3,0,2,0,0,10,0,"Folyamatos számonkérés (F)","ötfokozatú","Elsődleges tanterv: BM, KM, MM, VM, VZUBA\nTovábbi tanterv:",null,null,null,null,null,null,null,null,"Kötelező:\nAjánlott: "]
["Fodor Lajos Koordinációs kémia","Koordinációs kémia","Coordination Chemistry","Általános és szervetlen kémia","kötelező","Fodor Lajos","Természettudományi Központ",null,"x",null,6,2,0,3,null,null,null,"Vizsga (V)","ötfokozatú","Elsődleges tanterv: KE\nTovábbi tanterv:",null,null,null,null,null,null,null,null,"Kötelező:\nAjánlott: "]
["Dr. Kristóf Tamás Korróziós alapismeretek","Korróziós alapismeretek","Corrosion Basic","Fizika II., Fizikai kémia, (Fizikai kémia)","kötelező/ spec. kötelező","Dr. Kristóf Tamás","Természettudományi Központ","x","x","x",3,2,0,0,10,0,0,"Folyamatos számonkérés (F)","ötfokozatú","Elsődleges tanterv: AM, GM, KE, VM, VZUBA\nTovábbi tanterv:",null,null,null,null,null,null,null,null,"Kötelező:\nAjánlott: "]
["Dr. Korim Tamás Korszerű szerkezeti anyagok","Korszerű szerkezeti anyagok","Modern Structural Materials","Anyagtudomány","kötelező/spec. kötelező","Dr. Korim Tamás","Műszaki Tudományok Kutató-Fejlesztő Központ","x",null,null,3,2,0,0,10,0,0,"Folyamatos számonkérés (F)","ötfokozatú","Elsődleges tanterv: kötelező - AM, spec. köt. - GM\nTovábbi tanterv:",null,null,null,null,null,null,null,null,"Kötelező:\nAjánlott: "]
[" Környezetállapot értékeles és auditálás","Környezetállapot értékeles és auditálás","Environmental State Evaluation and Auditing ","Életciklus elemzés","kötelező",null,"Bio-, Környezet- és Vegyészmérnöki Kutató-Fejlesztő Központ",null,"x",null,6,2,2,0,null,null,null,"Vizsga (V)","ötfokozatú","Elsődleges tanterv: KM\nTovábbi tanterv:",null,null,null,null,null,null,null,null,"Kötelező:\nAjánlott: "]
["Dr. Selmeczy Géza Balázs Környezetegészségtan","Környezetegészségtan","Environmental Health",null,"kötelező","Dr. Selmeczy Géza Balázs","Természettudományi Központ",null,"x",null,6,4,0,0,20,0,0,"Folyamatos számonkérés (F)","ötfokozatú","Elsődleges tanterv: KT\nTovábbi tanterv:",null,null,null,null,null,null,null,null,"Kötelező:\nAjánlott: "]
["Dr. Horváth Ottó Környezeti fotokémia","Környezeti fotokémia","Environmental Photochemistry","Általános és szervetlen kémia","választható szakmai tárgy (KE), specializáción kötelező (KT)","Dr. Horváth Ottó","Természettudományi Központ","x",null,null,3,2,0,0,10,0,0,"Kollokvium (K)","ötfokozatú","Elsődleges tanterv: választható szakmai tárgy - KE, specializáción kötelező - KT\nTovábbi tanterv:",null,null,null,null,null,null,null,null,"Kötelező:\nAjánlott: "]
["Dr. Horváth Ottó Környezeti kémia","Környezeti kémia","Environmental Chemistry","A kémia alapjai","kötelező","Dr. Horváth Ottó","Természettudományi Központ",null,"x",null,3,2,0,0,10,0,0,"Vizsga (V)","ötfokozatú","Elsődleges tanterv: KE, KT\nTovábbi tanterv:",null,null,null,null,null,null,null,null,"Kötelező:\nAjánlott: "]
["Dr. Valicsek Zsolt Környezeti kémia laboratóriumi gyakorlat","Környezeti kémia laboratóriumi gyakorlat","Environmental Chemistry Laboratory Practice","A kémia alapjai","kötelező (KE), specializáción kötelező (KT)","Dr. Valicsek Zsolt","Természettudományi Központ",null,"x",null,3,0,0,3,0,0,15,"Folyamatos számonkérés (F)","ötfokozatú","Elsődleges tanterv: kötelező - KE, specializáción kötelező - KT\nTovábbi tanterv:",null,null,null,null,null,null,null,null,"Kötelező:\nAjánlott: "]
["Dr. Selmeczy Géza Balázs Környezeti megfigyelési rendszerek","Környezeti megfigyelési rendszerek","Environmental Monitoring Systems",null,"kötelező","Dr. Selmeczy Géza Balázs","Természettudományi Központ",null,"x",null,6,2,0,2,10,0,10,"Vizsga (V)","ötfokozatú","Elsődleges tanterv: KT\nTovábbi tanterv:",null,null,null,null,null,null,null,null,"Kötelező:\nAjánlott: "]
["Dr. Tóth - Nagy Georgina Környezeti monitorozás I.","Környezeti monitorozás I.","Environmetnal Monitoring I.",null,"specializáción kötelező","Dr. Tóth - Nagy Georgina","Bio-, Környezet- és Vegyészmérnöki Kutató-Fejlesztő Központ",null,"x",null,3,0,2,0,0,10,0,"Folyamatos számonkérés (F)","ötfokozatú","Elsődleges tanterv: VZUBA\nTovábbi tanterv:",null,null,null,null,null,null,null,null,"Kötelező:\nAjánlott: "]
["Dr. Tóth-Bodrogi Edit Környezeti sugárzások és sugárvédelem","Környezeti sugárzások és sugárvédelem","Radioecology and Radiation Protection",null,"kötelező","Dr. Tóth-Bodrogi Edit","Bio-, Környezet- és Vegyészmérnöki Kutató-Fejlesztő Központ",null,"x",null,3,2,0,0,null,null,null,"Vizsga (V)","ötfokozatú","Elsődleges tanterv: KM\nTovábbi tanterv:",null,null,null,null,null,null,null,null,"Kötelező:\nAjánlott: "]
["Dr. Domokos Endre Gábor Környezetinformatika","Környezetinformatika","Environmental Informatics",null,"kötelező","Dr. Domokos Endre Gábor","Bio-, Környezet- és Vegyészmérnöki Kutató-Fejlesztő Központ",null,"x",null,3,0,0,3,0,0,15,"Folyamatos számonkérés (F)","ötfokozatú","Elsődleges tanterv: KT, KM\nTovábbi tanterv:",null,null,null,null,null,null,null,null,"Kötelező:\nAjánlott: "]
["Fejes Lászlóné dr. Utasi Anett Környezetjog, politika és szociológia","Környezetjog, politika és szociológia","Environmetal Law, Politics and Sociology",null,"kötelező","Fejes Lászlóné dr. Utasi Anett","Bio-, Környezet- és Vegyészmérnöki Kutató-Fejlesztő Központ",null,"x",null,3,2,0,0,10,0,0,"Vizsga (V)","ötfokozatú","Elsődleges tanterv: KT, KM\nTovábbi tanterv:",null,null,null,null,null,null,null,null,"Kötelező:\nAjánlott: "]
["Dr. Varga Szabolcs Környezetkímélő energiaforrások","Környezetkímélő energiaforrások","Renewable Energy Sources",null,"választható szakmai tárgy","Dr. Varga Szabolcs","Természettudományi Központ","x",null,null,3,2,0,0,null,null,null,"Kollokvium (K)","ötfokozatú","Elsődleges tanterv: KE\nTovábbi tanterv:",null,null,null,null,null,null,null,null,"Kötelező:\nAjánlott: "]
["Dr. Domokos Endre Gábor Környezetmérnöki szoftverek labor","Környezetmérnöki szoftverek labor","Environmental Engineering Softwares Laboratory Practice","Környezetinformatika","kötelező","Dr. Domokos Endre Gábor","Bio-, Környezet- és Vegyészmérnöki Kutató-Fejlesztő Központ",null,"x",null,2,0,0,2,null,null,null,"Folyamatos számonkérés (F)","ötfokozatú","Elsődleges tanterv: KM\nTovábbi tanterv:",null,null,null,null,null,null,null,null,"Kötelező:\nAjánlott: "]
["Dr. Domokos Endre Gábor Környezetvédelem","Környezetvédelem","Environmental Protection ","-","kötelező/spec. kötelező","Dr. Domokos Endre Gábor","Bio-, Környezet- és Vegyészmérnöki Kutató-Fejlesztő Központ","x",null,null,3,2,0,0,10,0,0,"Folyamatos számonkérés (F)","ötfokozatú","Elsődleges tanterv: kötelező - AM, MM, spec. köt. GE\nTovábbi tanterv:",null,null,null,null,null,null,null,null,"Kötelező:\nAjánlott: "]
["Dr. Domokos Endre Gábor Környezetvédelem","Környezetvédelem","Environmental Protection ","-","kötelező","Dr. Domokos Endre Gábor","Bio-, Környezet- és Vegyészmérnöki Kutató-Fejlesztő Központ","x",null,null,6,2,2,0,null,null,null,"Vizsga (V)","ötfokozatú","Elsődleges tanterv: BM",null,null,null,null,null,null,null,null,"Kötelező:\nAjánlott: "]
["Dr. Nyirő-Kósa Ilona Kristálytan","Kristálytan","Crystallography","A kémia alapjai ","kötelező","Dr. Nyirő-Kósa Ilona","Bio-nanotechnológiai és Műszaki Kémiai Kutatóintézet","x",null,null,3,1,1,0,null,null,null,"Folyamatos számonkérés (F)","ötfokozatú","Elsődleges tanterv: AM\nTovábbi tanterv:",null,null,null,null,null,null,null,null,"Kötelező:\nAjánlott: "]
[" Különleges megmunkálások","Különleges megmunkálások","Special Manufacturings","Gépgyártástechnológia II.","kötelező (VZUBA), specializáción kötelező (GM)",null,"Soós Ernő Kutató-Fejlesztő Központ, Nagykanizsa","x",null,null,3,2,0,0,10,0,0,"Kollokvium (K)","ötfokozatú","Elsődleges tanterv:  kötelező - VZUBA, spec. köt. - GM\nTovábbi tanterv:",null,null,null,null,null,null,null,null,"Kötelező:\nAjánlott: "]
["Dr. Molnár Ágnes Légkörtan","Légkörtan","Atmospheric Science",null,"kötelező (KT), választható szakmai tárgy (KE)","Dr. Molnár Ágnes","Bio-nanotechnológiai és Műszaki Kémiai Kutatóintézet","x",null,null,3,2,0,0,10,0,0,"Folyamatos számonkérés (F)","ötfokozatú","Elsődleges tanterv: kötelező (KT), választható szakmai tárgy (KE)\nTovábbi tanterv:",null,null,null,null,null,null,null,null,"Kötelező:\nAjánlott: "]
["Dr. Gelencsér András Levegőkémia alapjai","Levegőkémia alapjai","Basics of Atmospheric Chemsitry / Air Chemistry","Általános és szervetlen kémia","specializáción kötelező","Dr. Gelencsér András","Bio-nanotechnológiai és Műszaki Kémiai Kutatóintézet",null,"x",null,6,2,0,2,10,0,10,"Folyamatos számonkérés (F)","ötfokozatú","Elsődleges tanterv: KT\nTovábbi tanterv:",null,null,null,null,null,null,null,null,"Kötelező:\nAjánlott: "]
["Dr. Tóth - Nagy Georgina Levegőtisztaság-védelem","Levegőtisztaság-védelem","Air Pollution Control ","Műszaki áramlás- és hőtan I.","kötelező","Dr. Tóth - Nagy Georgina","Bio-, Környezet- és Vegyészmérnöki Kutató-Fejlesztő Központ","x",null,null,9,3,3,0,null,null,null,"Vizsga (V)","ötfokozatú","Elsődleges tanterv: KM\nTovábbi tanterv:",null,null,null,null,null,null,null,null,"Kötelező:\nAjánlott: "]
["Dr. Juzsakova Tatjána Levegőtisztaság-védelem laborgyakorlat","Levegőtisztaság-védelem laborgyakorlat","Air Pollution Control Laboratory Practice","Levegőtisztaság-védelem","kötelező","Dr. Juzsakova Tatjána","Bio-, Környezet- és Vegyészmérnöki Kutató-Fejlesztő Központ",null,"x",null,6,0,0,6,null,null,null,"Folyamatos számonkérés (F)","ötfokozatú","Elsődleges tanterv: KM\nTovábbi tanterv:",null,null,null,null,null,null,null,null,"Kötelező:\nAjánlott: "]
["Dr. Padisák Judit Limnológia és hidrobiológia","Limnológia és hidrobiológia","Limnology and Hydrobiology",null,"specializáción kötelező","Dr. Padisák Judit","Természettudományi Központ",null,"x",null,6,3,0,1,15,0,5,"Folyamatos számonkérés (F)","ötfokozatú","Elsődleges tanterv: KT\nTovábbi tanterv:",null,null,null,null,null,null,null,null,"Kötelező:\nAjánlott: "]
[{"$f":"CONCATENATE(F131,\" \",B131)","v":" Limnológia és hidrobiológia, a limnoökológia alapjai"},"Limnológia és hidrobiológia, a limnoökológia alapjai","Fundamental of Limnology, Hydrobiology and Limnoecology",null,"kötelező",null,"Soós Ernő Kutató-Fejlesztő Központ, Nagykanizsa / Műszaki Tudományok Kutató-Fejlesztő Központ",null,"x",null,3,2,0,0,10,0,0,"Vizsga (V)","ötfokozatú","Elsődleges tanterv: VZUBA\nTovábbi tanterv:",null,null,null,null,null,null,null,null,"Kötelező:\nAjánlott: "]
["Gurin Péter Mag- és részecskefizika","Mag- és részecskefizika","Nuclear and Particle Physics","Fizika II. ","választható szakmai tárgy","Gurin Péter","Természettudományi Központ","x",null,null,3,2,0,0,null,null,null,"Kollokvium (K)","ötfokozatú","Elsődleges tanterv: KE\nTovábbi tanterv:",null,null,null,null,null,null,null,null,"Kötelező:\nAjánlott: "]
[" Mágneses és termikus módszerek","Mágneses és termikus módszerek","Magnetic and Thermal Methods","Kémiai analízis I.","specializáción kötelező",null,"Természettudományi Központ",null,"x",null,3,2,0,0,null,null,null,"Vizsga (V)","ötfokozatú","Elsődleges tanterv: AM\nTovábbi tanterv:",null,null,null,null,null,null,null,null,"Kötelező:\nAjánlott: "]
[" Matematika I.","Matematika I.","Mathematics I."," ","kötelező",null,"MIK?","x",null,null,6,1,3,0,5,15,0,"Vizsga (V)","ötfokozatú","Elsődleges tanterv: AM, BM, GM, KE, KT, KM, MM, VM, VZUBA\nTovábbi tanterv:",null,null,null,null,null,null,null,null,"Kötelező:\nAjánlott: "]
[" Matematika II.","Matematika II.","Mathematics II.","Matematika I.","kötelező",null,"MIK?",null,"x",null,6,1,3,0,5,15,0,"Vizsga (V)","ötfokozatú","Elsődleges tanterv: AM, BM, GM, KE, MM, VM\nTovábbi tanterv:",null,null,null,null,null,null,null,null,"Kötelező:\nAjánlott: "]
[" Mechanika I.","Mechanika I.","Mechanics I.","Fizika II.","kötelező",null,"Műszaki Tudományok Kutató-Fejlesztő Központ","x",null,null,6,2,2,0,10,10,0,"Kollokvium (K)","ötfokozatú","Elsődleges tanterv: AM, GM, MM\nTovábbi tanterv:",null,null,null,null,null,null,null,null,"Kötelező:\nAjánlott: "]
[" Mechanika II.","Mechanika II.","Mechanics II.","Mechanika I.","kötelező",null,"Műszaki Tudományok Kutató-Fejlesztő Központ",null,"x",null,6,2,2,0,10,10,0,"Kollokvium (K)","ötfokozatú","Elsődleges tanterv: GM\nTovábbi tanterv:",null,null,null,null,null,null,null,null,"Kötelező:\nAjánlott: "]
["Dr. Nagy Lajos Mechatronikai rendszerek modellezése és irányítása","Mechatronikai rendszerek modellezése és irányítása","Modeling and Control of Mechatronic Systems","Folyamatmérnöki alapismeretek","specializáción kötelező","Dr. Nagy Lajos","Bio-, Környezet- és Vegyészmérnöki Kutató-Fejlesztő Központ",null,"x",null,9,2,0,4,null,null,null,"Folyamatos számonkérés (F)","ötfokozatú","Elsődleges tanterv: MM\nTovábbi tanterv:",null,null,null,null,null,null,null,null,"Kötelező:\nAjánlott: "]
["Gurin Péter Mechatronikai szoftverek","Mechatronikai szoftverek","Mechatronic Softwares",null,"kötelező (MM), specializáción kötelező (GM)","Gurin Péter","Természettudományi Központ","x",null,null,3,0,2,0,0,10,0,"Félévközi jegy (É)","ötfokozatú","Elsődleges tanterv: kötelező - MM, spec. köt. - GM\nTovábbi tanterv:",null,null,null,null,null,null,null,null,"Kötelező:\nAjánlott: "]
["Dr. Rózsenberszki Tamás Megújuló nyersanyag és energiaforrások biotechnológiája","Megújuló nyersanyag és energiaforrások biotechnológiája","Biotechnology of Renewable Raw Materials and Energy Sources","Biomérnöki műveletek I. ","választható differenciált szakmai tárgy","Dr. Rózsenberszki Tamás","Bio-, Környezet- és Vegyészmérnöki Kutató-Fejlesztő Központ",null,"x",null,9,2,2,2,null,null,null,"Vizsga (V)","ötfokozatú","Elsődleges tanterv: BM\nTovábbi tanterv:",null,null,null,null,null,null,null,null,"Kötelező:\nAjánlott: "]
["Bélafiné dr. Bakó Katalin Membrános műveletek","Membrános műveletek","Membrane Separation Processes ",null,"választható differenciált szakmai tárgy","Bélafiné dr. Bakó Katalin","Bio-, Környezet- és Vegyészmérnöki Kutató-Fejlesztő Központ",null,"x",null,3,2,0,0,null,null,null,"Félévközi jegy (É)","ötfokozatú","Elsődleges tanterv: BM\nTovábbi tanterv:",null,null,null,null,null,null,null,null,"Kötelező:\nAjánlott: "]
["Dr. Nemestóthy Béla Nándor Membrános műveletek labor gyakorlat","Membrános műveletek labor gyakorlat","Membrane Separation Processes Laboratory Practice",null,"választható differenciált szakmai tárgy","Dr. Nemestóthy Béla Nándor","Bio-, Környezet- és Vegyészmérnöki Kutató-Fejlesztő Központ",null,"x",null,3,0,0,2,null,null,null,"Félévközi jegy (É)","ötfokozatú","Elsődleges tanterv: BM\nTovábbi tanterv:",null,null,null,null,null,null,null,null,"Kötelező:\nAjánlott: "]
[" Menedzsment alapjai","Menedzsment alapjai","Introduction to Management","-","kötelező",null,"GTK","x",null,null,3,2,0,0,null,null,null,"Folyamatos számonkérés (F)","ötfokozatú","Elsődleges tanterv: AM, BM, KM, VM\nTovábbi tanterv:",null,null,null,null,null,null,null,null,"Kötelező:\nAjánlott: "]
["Dr. Szalai István Mérés- és műszertechnika","Mérés- és műszertechnika","Measurement and Instrumentation Technology","Fizika I. ","kötelező","Dr. Szalai István","Műszaki Tudományok Kutató-Fejlesztő Központ",null,"x",null,6,2,0,2,10,0,10,"Folyamatos számonkérés (F)","ötfokozatú","Elsődleges tanterv: MM\nTovábbi tanterv:",null,null,null,null,null,null,null,null,"Kötelező:\nAjánlott: "]
["Dr. Varga Szabolcs Mérnöki fizika","Mérnöki fizika","Physics for Engineers","Fizika I., Fizika II.","kötelező","Dr. Varga Szabolcs","Természettudományi Központ","x",null,null,6,4,0,0,20,0,0,"Kollokvium (K)","ötfokozatú","Elsődleges tanterv: VZUBA\nTovábbi tanterv:",null,null,null,null,null,null,null,null,"Kötelező:\nAjánlott: "]
["Dr. Ulbert Zsolt Mérnöki számítások alapjai (numerikus)","Mérnöki számítások alapjai (numerikus)","Basics of Engineering Calculations","Matematika II.","kötelező","Dr. Ulbert Zsolt","Bio-, Környezet- és Vegyészmérnöki Kutató-Fejlesztő Központ","x",null,null,3,1,1,0,null,null,null,"Folyamatos számonkérés (F)","ötfokozatú","Elsődleges tanterv: BM, VM\nTovábbi tanterv:",null,null,null,null,null,null,null,null,"Kötelező:\nAjánlott: "]
[" Mérnökmatematika","Mérnökmatematika","Mathematics for Engineers","Matematika I.","kötelező",null,"MIK?","x",null,null,3,0,2,0,null,null,null,"Félévközi jegy (É)","ötfokozatú","Elsődleges tanterv: KM\nTovábbi tanterv:",null,null,null,null,null,null,null,null,"Kötelező:\nAjánlott: "]
["Gurin Péter Mérő és adatgyűjtő rendszerek","Mérő és adatgyűjtő rendszerek","Data Acquisition Systems","Elektronika","specializáción kötelező (MM, mérés- és labortechnika)","Gurin Péter","Természettudományi Központ","x",null,null,9,2,0,4,null,null,null,"Folyamatos számonkérés (F)","ötfokozatú","Elsődleges tanterv: MM\nTovábbi tanterv:",null,null,null,null,null,null,null,null,"Kötelező:\nAjánlott: "]
["Gurin Péter Mérő és adatgyűjtő rendszerek","Mérő és adatgyűjtő rendszerek","Data Acquisition Systems","Elektronika","specializáción kötelező (mechatronikai technológiák)","Gurin Péter","Természettudományi Központ",null,"x",null,6,2,0,2,10,0,10,"Folyamatos számonkérés (F)","ötfokozatú","Elsődleges tanterv: MM\nTovábbi tanterv:",null,null,null,null,null,null,null,null,"Kötelező:\nAjánlott: "]
["Dr. Lukács Pál Metrológia","Metrológia","Metrology","Gépgyártástechnológia I","specializáción kötelező","Dr. Lukács Pál","Műszaki Tudományok Kutató-Fejlesztő Központ","x",null,null,6,2,0,2,10,0,10,"Vizsga (V)","ötfokozatú","Elsődleges tanterv: GM\nTovábbi tanterv:",null,null,null,null,null,null,null,null,"Kötelező:\nAjánlott: "]
[" Mezőgazdasági és környezetvédelmi alapismeretek","Mezőgazdasági és környezetvédelmi alapismeretek","Fundamentals of Agriculture and Environmental Protection",null,"kötelező",null,"Soós Ernő Kutató-Fejlesztő Központ, Nagykanizsa","x",null,null,3,2,0,0,10,0,0,"Kollokvium (K)","ötfokozatú","Elsődleges tanterv: VZUBA\nTovábbi tanterv:",null,null,null,null,null,null,null,null,"Kötelező:\nAjánlott: "]
["Dr. Selmeczy Géza Balázs Mikrobiológia","Mikrobiológia","Microbiology","Biológia II.","kötelező, specializáción kötelező","Dr. Selmeczy Géza Balázs","Természettudományi Központ",null,"x",null,6,2,0,2,10,0,10,"Vizsga (V)","ötfokozatú","Elsődleges tanterv: kötelező - BM, spec. köt. - KT\nTovábbi tanterv:",null,null,null,null,null,null,null,null,"Kötelező:\nAjánlott: "]
[" Mikroszennyezők a víztechnológiában","Mikroszennyezők a víztechnológiában","Microcontaminants in Water Technology","Vízkémia mérnököknek","specializáción kötelező",null,"Soós Ernő Kutató-Fejlesztő Központ, Nagykanizsa","x",null,null,3,0,2,0,0,10,0,"Folyamatos számonkérés (F)","ötfokozatú","Elsődleges tanterv: VZUBA\nTovábbi tanterv:",null,null,null,null,null,null,null,null,"Kötelező:\nAjánlott: "]
["Dr. Kovács Kristóf Mikroszkópia","Mikroszkópia","Microscopy","Anyagtudomány, Általános és szervetlen kémia","specializáción kötelező, választható szakmai tárgy","Dr. Kovács Kristóf","Műszaki Tudományok Kutató-Fejlesztő Központ",null,null,"x",3,2,0,0,null,null,null,"Folyamatos számonkérés (F)","ötfokozatú","Elsődleges tanterv: spec. köt. - AM, választható - KE\nTovábbi tanterv:",null,null,null,null,null,null,null,null,"Kötelező:\nAjánlott: "]
["Dr. Medvegy Tibor Mikrovezérlők","Mikrovezérlők","Microcontrollers","Digitális elektronika (GM), Programozás alapjai (MM)","kötelező (MM), specializáción kötelező (GM)","Dr. Medvegy Tibor","Műszaki Tudományok Kutató-Fejlesztő Központ",null,"x",null,6,1,0,3,5,0,15,"Folyamatos számonkérés (F)","ötfokozatú","Elsődleges tanterv: kötelező - MM, spec. köt. - GM\nTovábbi tanterv:",null,null,null,null,null,null,null,null,"Kötelező:\nAjánlott: "]
["Dr. Medvegy Tibor Mikrovezérlők mechatronikai alkalmazásai","Mikrovezérlők mechatronikai alkalmazásai","Mechatronical Applications of Microcontrollers","Mikrovezérlők","specializáción kötelező","Dr. Medvegy Tibor","Műszaki Tudományok Kutató-Fejlesztő Központ","x",null,null,6,0,0,4,null,null,null,"Folyamatos számonkérés (F)","ötfokozatú","Elsődleges tanterv: MM\nTovábbi tanterv:",null,null,null,null,null,null,null,null,"Kötelező:\nAjánlott: "]
["Dr. Kovács Zsófia Minőségbiztosítás alapjai","Minőségbiztosítás alapjai","Basics of Quality Assurance","-","kötelező","Dr. Kovács Zsófia","Bio-, Környezet- és Vegyészmérnöki Kutató-Fejlesztő Központ",null,"x",null,3,2,0,0,null,null,null,"Folyamatos számonkérés (F)","ötfokozatú","Elsődleges tanterv: AM, BM, KM, VM\nTovábbi tanterv:",null,null,null,null,null,null,null,null,"Kötelező:\nAjánlott: "]
[" Minőségügyi, biztonságtechnikai és munkavédelmi ismeretek","Minőségügyi, biztonságtechnikai és munkavédelmi ismeretek","Knowledge of Quality, Safety and Occupational Health and Safety",null,"kötelező",null,"Soós Ernő Kutató-Fejlesztő Központ, Nagykanizsa","x",null,null,3,1,1,0,5,5,0,"Folyamatos számonkérés (F)","ötfokozatú","Elsődleges tanterv: VZUBA\nTovábbi tanterv:",null,null,null,null,null,null,null,null,"Kötelező:\nAjánlott: "]
[" Modellezés és szimuláció a mechanikában","Modellezés és szimuláció a mechanikában","Modeling and Simulation in Mechanics","Mechanika II.","specializáción kötelező",null,"Műszaki Tudományok Kutató-Fejlesztő Központ","x",null,null,3,0,0,2,0,0,10,"Félévközi jegy (É)","ötfokozatú","Elsődleges tanterv: GM\nTovábbi tanterv:",null,null,null,null,null,null,null,null,"Kötelező:\nAjánlott: "]
["Dr. Somogyi Viola Munkavédelem","Munkavédelem","Occupational Health and Safety"," ","kötelező","Dr. Somogyi Viola","Bio-, Környezet- és Vegyészmérnöki Kutató-Fejlesztő Központ","x",null,null,0,2,0,0,10,0,0,"Folyamatos számonkérés (F)","ötfokozatú","Elsődleges tanterv: AM, BM, GM, KE, KT, KM, MM, VM\nTovábbi tanterv:",null,null,null,null,null,null,null,null,"Kötelező:\nAjánlott: "]
["Dr. Miskolczi Norbert Műanyagkompozitok és adalékanyagok","Műanyagkompozitok és adalékanyagok","Polymer Composites and Additives","Szerves kémia","specializáción kötelező","Dr. Miskolczi Norbert","Bio-, Környezet- és Vegyészmérnöki Kutató-Fejlesztő Központ",null,"x",null,3,2,0,0,null,null,null,"Kollokvium (K)","ötfokozatú","Elsődleges tanterv: AM\nTovábbi tanterv:",null,null,null,null,null,null,null,null,"Kötelező:\nAjánlott: "]
["Dr. Miskolczi Norbert Műanyagok feldolgozási technikái","Műanyagok feldolgozási technikái","Polymer Processing","Polimertechnológia","specializáción kötelező","Dr. Miskolczi Norbert","Bio-, Környezet- és Vegyészmérnöki Kutató-Fejlesztő Központ","x",null,null,6,2,0,3,null,null,null,"Folyamatos számonkérés (F)","ötfokozatú","Elsődleges tanterv: AM\nTovábbi tanterv:",null,null,null,null,null,null,null,null,"Kötelező:\nAjánlott: "]
[" Műszaki ábrázolás és vízgépek","Műszaki ábrázolás és vízgépek","Technical Drawing and Water Machines",null,"kötelező",null,"Műszaki Tudományok Kutató-Fejlesztő Központ",null,"x",null,6,0,4,0,0,20,0,"Félévközi jegy (É)","ötfokozatú","Elsődleges tanterv: VZUBA\nTovábbi tanterv:",null,null,null,null,null,null,null,null,"Kötelező:\nAjánlott: "]
["Dr. Ulbert Zsolt Műszaki áramlás- és hőtan I.","Műszaki áramlás- és hőtan I.","Technical Fluid Mechanics and Engineering Thermodynamics I.","Matematika I., Matematika II., Fizika I.","kötelező","Dr. Ulbert Zsolt","Bio-, Környezet- és Vegyészmérnöki Kutató-Fejlesztő Központ","x",null,null,6,2,2,0,10,10,0,"Vizsga (V)","ötfokozatú","Elsődleges tanterv: AM, BM, GM, KM, MM, VM\nTovábbi tanterv:",null,null,null,null,null,null,null,null,"Kötelező:\nAjánlott: "]
["Dr. Egedy Attila Műszaki áramlás- és hőtan II.","Műszaki áramlás- és hőtan II.","Technical Fluid Mechanics and Engineering Thermodynamics II.","Műszaki áramlás- és hőtan I.","kötelező (VM), specializáción kötelező (GM)","Dr. Egedy Attila","Bio-, Környezet- és Vegyészmérnöki Kutató-Fejlesztő Központ","x",null,null,3,2,0,0,10,0,0,"Vizsga (V)","ötfokozatú","Elsődleges tanterv: kötelező -  VM, spec. köt. - GM\nTovábbi tanterv:",null,null,null,null,null,null,null,null,"Kötelező:\nAjánlott: "]
["Dr. Horváth Pál Műszaki rajz és ábrázoló geometria","Műszaki rajz és ábrázoló geometria","Technical Drawing and Descriptive Geometry",null,"kötelező","Dr. Horváth Pál","Műszaki Tudományok Kutató-Fejlesztő Központ","x",null,null,6,2,2,0,10,10,0,"Félévközi jegy (É)","ötfokozatú","Elsődleges tanterv: GM, MM\nTovábbi tanterv:",null,null,null,null,null,null,null,null,"Kötelező:\nAjánlott: "]
["Dr. Szalai István Műszer, méréstechnika és automatizálás a vízkezelésben","Műszer, méréstechnika és automatizálás a vízkezelésben","Instruments, Measurement Technology and Automation of Water Treatment",null,"kötelező","Dr. Szalai István","Műszaki Tudományok Kutató-Fejlesztő Központ",null,"x",null,6,2,0,2,10,0,10,"Vizsga (V)","ötfokozatú","Elsődleges tanterv: VZUBA\nTovábbi tanterv:",null,null,null,null,null,null,null,null,"Kötelező:\nAjánlott: "]
["Dr. Pethő Dóra Művelettan","Művelettan","Unit Operations","A kémia alapjai, Fizikai kémia","kötelező","Dr. Pethő Dóra","Bio-, Környezet- és Vegyészmérnöki Kutató-Fejlesztő Központ","X","x",null,6,3,1,0,15,5,0,"Vizsga (V)","ötfokozatú","Elsődleges tanterv: AM, BM, KM, VM, VZUBA\nTovábbi tanterv:",null,null,null,null,null,null,null,null,"Kötelező:\nAjánlott: "]
["Soósné Dr. Balczár Ida Anna Nemfémes szerkezeti anyagok tulajdonságai","Nemfémes szerkezeti anyagok tulajdonságai","Technology of Non-metallic Inorganic Structural Materials ","Anyagtudomány","specializáción kötelező","Soósné Dr. Balczár Ida Anna","Műszaki Tudományok Kutató-Fejlesztő Központ","x",null,null,6,2,2,0,10,10,0,"Vizsga (V)","ötfokozatú","Elsődleges tanterv: GM\nTovábbi tanterv:",null,null,null,null,null,null,null,null,"Kötelező:\nAjánlott: "]
["Dr. Kovács András Nemfémes szerkezeti anyagok tulajdonságai lab.gyak.","Nemfémes szerkezeti anyagok tulajdonságai lab.gyak.","Technology of Non-metallic Inorganic Structural Materials Laboratory Practice","Nemfémes szerk. anyagok tulajdonságai","specializáción kötelező","Dr. Kovács András","Műszaki Tudományok Kutató-Fejlesztő Központ",null,"x",null,3,0,0,3,0,0,15,"Félévközi jegy (É)","ötfokozatú","Elsődleges tanterv: GM\nTovábbi tanterv:",null,null,null,null,null,null,null,null,"Kötelező:\nAjánlott: "]
[" Nukleáris környezetvédelem","Nukleáris környezetvédelem","Nuclear Environmental Protection ","Környezeti sugárzások és sugárvédelem","kötelező",null,"Bio-, Környezet- és Vegyészmérnöki Kutató-Fejlesztő Központ",null,"x",null,3,2,0,0,null,null,null,"Vizsga (V)","ötfokozatú","Elsődleges tanterv: KM\nTovábbi tanterv:",null,null,null,null,null,null,null,null,"Kötelező:\nAjánlott: "]
[" Nyák tervezés","Nyák tervezés","PCB Design","Elektronika","specializáción kötelező",null,"Műszaki Tudományok Kutató-Fejlesztő Központ",null,"x",null,3,0,2,0,null,null,null,"Folyamatos számonkérés (F)","ötfokozatú","Elsődleges tanterv: MM\nTovábbi tanterv:",null,null,null,null,null,null,null,null,"Kötelező:\nAjánlott: "]
["Dr. Gugolya Zoltán Optika és labortechnika","Optika és labortechnika","Optics and Laboratory Technique","Fizika II.","specializáción kötelező","Dr. Gugolya Zoltán","Műszaki Tudományok Kutató-Fejlesztő Központ",null,"x",null,9,2,2,2,null,null,null,"Vizsga (V)","ötfokozatú","Elsődleges tanterv: MM\nTovábbi tanterv:",null,null,null,null,null,null,null,null,"Kötelező:\nAjánlott: "]
["Dr. Liker András Ökológia","Ökológia","Ecology","Biológia I.","kötelező","Dr. Liker András","Természettudományi Központ","x",null,null,6,3,1,0,15,5,0,"Vizsga (V)","ötfokozatú","Elsődleges tanterv: BM, KT\nTovábbi tanterv:",null,null,null,null,null,null,null,null,"Kötelező:\nAjánlott: "]
["Dr. Gugolya Zoltán PLC programozás","PLC programozás","PLC Programming","Elektronika, Programozás alapjai","specializáción kötelező","Dr. Gugolya Zoltán","Műszaki Tudományok Kutató-Fejlesztő Központ",null,"x",null,6,0,0,4,null,null,null,"Folyamatos számonkérés (F)","ötfokozatú","Elsődleges tanterv: MM\nTovábbi tanterv:",null,null,null,null,null,null,null,null,"Kötelező:\nAjánlott: "]
["Dr. Kaizer József Polimerek kémiája ","Polimerek kémiája ","Chemistry of Polymers","Szerves kémia","kötelező","Dr. Kaizer József","Természettudományi Központ",null,"x",null,3,2,0,0,null,null,null,"Kollokvium (K)","ötfokozatú","Elsődleges tanterv: AM\nTovábbi tanterv:",null,null,null,null,null,null,null,null,"Kötelező:\nAjánlott: "]
["Dr. Varga Csilla Polimerek méréstechnikája","Polimerek méréstechnikája","Polymer Testing","Polimertechnológia","specializáción kötelező","Dr. Varga Csilla","Bio-, Környezet- és Vegyészmérnöki Kutató-Fejlesztő Központ","x",null,null,3,2,0,0,null,null,null,"Folyamatos számonkérés (F)","ötfokozatú","Elsődleges tanterv: AM\nTovábbi tanterv:",null,null,null,null,null,null,null,null,"Kötelező:\nAjánlott: "]
[" Polimertechnológia","Polimertechnológia","Technology of Polymers","Szerves kémia, Általános kémia","kötelező/spec. kötelező",null,"Bio-, Környezet- és Vegyészmérnöki Kutató-Fejlesztő Központ","x",null,null,3,2,0,0,10,0,0,"Folyamatos számonkérés (F)","ötfokozatú","Elsődleges tanterv: kötelező- AM, MM, spec. köt. - GM\nTovábbi tanterv:",null,null,null,null,null,null,null,null,"Kötelező:\nAjánlott: "]
[" Dr. Tóth-Nagy Georgina Prezentációs tréning","Prezentációs tréning","Presentation Training",null,"kötelező"," Dr. Tóth-Nagy Georgina","Bio-, Környezet- és Vegyészmérnöki Kutató-Fejlesztő Központ",null,"x",null,3,0,2,0,null,null,null,null,"ötfokozatú","Elsődleges tanterv: BM, VM\nTovábbi tanterv:",null,null,null,null,null,null,null,null,"Kötelező:\nAjánlott: "]
[" Dr. Tóth-Nagy Georgina Prezentációs tréning","Prezentációs tréning","Presentation Training",null,"kötelező"," Dr. Tóth-Nagy Georgina","Bio-, Környezet- és Vegyészmérnöki Kutató-Fejlesztő Központ",null,"x",null,0,0,2,0,null,null,null,null,null,"Elsődleges tanterv: KM\nTovábbi tanterv:",null,null,null,null,null,null,null,null,"Kötelező:\nAjánlott: "]
[" Programozás alapjai","Programozás alapjai","Basics of Computer Programming","Informatikai alapismeretek","kötelező (MM), specializáción kötelező (GM)",null,"Bio-, Környezet- és Vegyészmérnöki Kutató-Fejlesztő Központ","x",null,null,6,2,0,2,10,0,10,"Félévközi jegy (É)","ötfokozatú","Elsődleges tanterv: kötelező - MM, spec. köt. - GM\nTovábbi tanterv:",null,null,null,null,null,null,null,null,"Kötelező:\nAjánlott: "]
[" Projekt feladat","Projekt feladat","Project Task","Aktuátortechnika","specializáción kötelező",null,"Műszaki Tudományok Kutató-Fejlesztő Központ",null,"x",null,6,0,0,4,0,0,20,"Folyamatos számonkérés (F)","ötfokozatú","Elsődleges tanterv: MM\nTovábbi tanterv:",null,null,null,null,null,null,null,null,"Kötelező:\nAjánlott: "]
[" Projekt menedzsment","Projekt menedzsment","Project Management",null,"kötelező",null,"GTK","x",null,null,3,1,1,0,5,5,0,null,"ötfokozatú","Elsődleges tanterv: VZUBA\nTovábbi tanterv:",null,null,null,null,null,null,null,null,"Kötelező:\nAjánlott: "]
["Dr. Kovács Tibor Radioizotóp alkalmazások","Radioizotóp alkalmazások","Uses of Radioisotopes","Sugárzástani ismeretek","választható szakmai tárgy","Dr. Kovács Tibor","Bio-, Környezet- és Vegyészmérnöki Kutató-Fejlesztő Központ","x",null,null,3,2,0,0,null,null,null,"Kollokvium (K)","ötfokozatú","Elsődleges tanterv: KE\nTovábbi tanterv:",null,null,null,null,null,null,null,null,"Kötelező:\nAjánlott: "]
["Dr. Kovács Tibor Radioizotópos vizsgálati módszerek","Radioizotópos vizsgálati módszerek","Test Methods of Radioisotopes",null,"választható differenciált szakmai tárgy","Dr. Kovács Tibor","Bio-, Környezet- és Vegyészmérnöki Kutató-Fejlesztő Központ",null,"x",null,3,1,0,1,null,null,null,"Folyamatos számonkérés (F)","ötfokozatú","Elsődleges tanterv: BM\nTovábbi tanterv:",null,null,null,null,null,null,null,null,"Kötelező:\nAjánlott: "]
["Dr. Kovács Tibor Radioökológia","Radioökológia","Radioecology",null,"választható differenciált szakmai tárgy","Dr. Kovács Tibor","Bio-, Környezet- és Vegyészmérnöki Kutató-Fejlesztő Központ","x",null,null,3,2,0,0,null,null,null,"Kollokvium (K)","ötfokozatú","Elsődleges tanterv: BM\nTovábbi tanterv:",null,null,null,null,null,null,null,null,"Kötelező:\nAjánlott: "]
["Dr. Medvegy Tibor Robottechnika","Robottechnika","Robot Technics","Gépgyártástechnológia II., Programozás alapjai","kötelező/specializáción kötelező","Dr. Medvegy Tibor","Műszaki Tudományok Kutató-Fejlesztő Központ","x",null,null,3,1,1,0,5,5,0,"Folyamatos számonkérés (F)","ötfokozatú","Elsődleges tanterv: kötelező - ME, spec. köt. - GM\nTovábbi tanterv:",null,null,null,null,null,null,null,null,"Kötelező:\nAjánlott: "]
["Dr. Nemestóthy Béla Nándor Rögzítettt biokatalizátorok, bioreaktorok","Rögzítettt biokatalizátorok, bioreaktorok","Immobilized Biocatalysts, Bioreactors",null,"választható differenciált szakmai tárgy","Dr. Nemestóthy Béla Nándor","Bio-, Környezet- és Vegyészmérnöki Kutató-Fejlesztő Központ",null,"x",null,3,2,0,0,null,null,null,"Félévközi jegy (É)","ötfokozatú","Elsődleges tanterv: BM\nTovábbi tanterv:",null,null,null,null,null,null,null,null,"Kötelező:\nAjánlott: "]
["Dr. Kristófné dr. Makó Éva Röntgendiffrakciós vizsgálatok","Röntgendiffrakciós vizsgálatok","X-ray Diffraction","Anyagtudomány","specializáción kötelező","Dr. Kristófné dr. Makó Éva","Műszaki Tudományok Kutató-Fejlesztő Központ","x",null,null,3,1,1,0,null,null,null,"Félévközi jegy (É)","ötfokozatú","Elsődleges tanterv: AM\nTovábbi tanterv:",null,null,null,null,null,null,null,null,"Kötelező:\nAjánlott: "]
["Soósné Dr. Balczár Ida Anna Speciális kollégium","Speciális kollégium","Special Topics","Speciális témák hallgatói feldolgozásban","specializáción kötelező","Soósné Dr. Balczár Ida Anna","Műszaki Tudományok Kutató-Fejlesztő Központ","x",null,null,3,0,0,3,null,null,null,"Félévközi jegy (É)","ötfokozatú","Elsődleges tanterv: AM\nTovábbi tanterv:",null,null,null,null,null,null,null,null,"Kötelező:\nAjánlott: "]
["Dr. Kovács András Speciális témák hallgatói feldolgozásban","Speciális témák hallgatói feldolgozásban","Special Topics for Individual Research","Anyagtudomány","specializáción kötelező","Dr. Kovács András","Műszaki Tudományok Kutató-Fejlesztő Központ",null,"x",null,3,0,2,0,null,null,null,"Félévközi jegy (É)","ötfokozatú","Elsődleges tanterv: AM\nTovábbi tanterv:",null,null,null,null,null,null,null,null,"Kötelező:\nAjánlott: "]
["Dr. Tóth-Bodrogi Edit Sugárzástani ismeretek","Sugárzástani ismeretek","Radiations",null,"kötelező (KE), specializáción kötelező (KT)","Dr. Tóth-Bodrogi Edit","Bio-, Környezet- és Vegyészmérnöki Kutató-Fejlesztő Központ","x",null,null,3,2,0,0,10,0,0,"Folyamatos számonkérés (F)","ötfokozatú","Elsődleges tanterv: kötelező - KE) specializáción kötelező - KT\nTovábbi tanterv:",null,null,null,null,null,null,null,null,"Kötelező:\nAjánlott: "]
["Dr. Kristófné dr. Makó Éva Szakdolgozat (AMBSc)","Szakdolgozat (AMBSc)","Thesis","Anyagtudomány","kötelező","Dr. Kristófné dr. Makó Éva","Műszaki Tudományok Kutató-Fejlesztő Központ","x",null,null,15,0,0,15,null,null,null,"Félévközi jegy (É)","ötfokozatú","Elsődleges tanterv: AM\nTovábbi tanterv:",null,null,null,null,null,null,null,null,"Kötelező:\nAjánlott: "]
["Dr. Gugolya Zoltán Szakdolgozat II. (MM)","Szakdolgozat II. (MM)",null,"Szakdolgozat I.","kötelező","Dr. Gugolya Zoltán","Műszaki Tudományok Kutató-Fejlesztő Központ","x",null,null,15,0,0,12,0,0,60,"Félévközi jegy (É)","ötfokozatú","Elsődleges tanterv: MM\nTovábbi tanterv:",null,null,null,null,null,null,null,null,"Kötelező:\nAjánlott: "]
[{"$f":"CONCATENATE(F195,\" \",B195)","v":" Dr. Tóth-Nagy Georgina Szakdolgozat írási szabályok, módszerek "},"Szakdolgozat írási szabályok, módszerek ","Thesis Writing Rules and Methods",null,"kötelező"," Dr. Tóth-Nagy Georgina","Bio-, Környezet- és Vegyészmérnöki Kutató-Fejlesztő Központ","x",null,null,0,0,2,0,null,null,null,null,"ötfokozatú","Elsődleges tanterv: BM, KM\nTovábbi tanterv:",null,null,null,null,null,null,null,null,"Kötelező:\nAjánlott: "]
["Dr. Stenger-Kovács Csilla Szakdolgozati szeminárium (KT BSc)","Szakdolgozati szeminárium (KT BSc)","Thesis Seminar",null,"specializáción kötelező","Dr. Stenger-Kovács Csilla","Természettudományi Központ",null,"x",null,5,0,5,0,0,25,0,"Félévközi jegy (É)","ötfokozatú","Elsődleges tanterv: KT\nTovábbi tanterv:",null,null,null,null,null,null,null,null,"Kötelező:\nAjánlott: "]
["Dr. Egedy Attila Számítógéppel támogatott tervezés","Számítógéppel támogatott tervezés","Computer Aided Design","(Technológiai rendszerek modellezése), Eljárástervezés","kötelező","Dr. Egedy Attila","Bio-, Környezet- és Vegyészmérnöki Kutató-Fejlesztő Központ","x",null,null,6,2,2,0,null,null,null,null,"ötfokozatú","Elsődleges tanterv: VM\nTovábbi tanterv:",null,null,null,null,null,null,null,null,"Kötelező:\nAjánlott: "]
["Dr. Szalai István Szenzortechnika","Szenzortechnika","Sensor Technology","Elektronika (MM)","kötelező (MM), specializáción kötelező (GE)","Dr. Szalai István","Műszaki Tudományok Kutató-Fejlesztő Központ","x",null,null,6,2,0,2,10,0,10,"Vizsga (V)","ötfokozatú","Elsődleges tanterv: kötelező - MM, spec. köt. - GM\nTovábbi tanterv:",null,null,null,null,null,null,null,null,"Kötelező:\nAjánlott: "]
["Dr. Somogyi Viola Szennyvíztisztítás","Szennyvíztisztítás","Wastewater Treatment",null,"kötelező","Dr. Somogyi Viola","Bio-, Környezet- és Vegyészmérnöki Kutató-Fejlesztő Központ","x",null,null,3,2,0,0,10,0,0,"Vizsga (V)","ötfokozatú","Elsődleges tanterv: KT\nTovábbi tanterv:",null,null,null,null,null,null,null,null,"Kötelező:\nAjánlott: "]
["Dr. Somogyi Viola Szennyvíztisztítás és közművesítés","Szennyvíztisztítás és közművesítés","Wastewater Treatment and Public Utilities",null,"kötelező (VZUBA), specializáción kötelező (GM)","Dr. Somogyi Viola","Bio-, Környezet- és Vegyészmérnöki Kutató-Fejlesztő Központ / Soós Ernő Kutató-Fejlesztő Központ","x",null,null,6,3,0,1,15,0,5,"Vizsga (V)","ötfokozatú","Elsődleges tanterv: kötelező - VZUBA, specializáción kötelező - GM\nTovábbi tanterv:",null,null,null,null,null,null,null,null,"Kötelező:\nAjánlott: "]
["Dr. Gyurika István Gábor Szerkezeti anyagok és technológiájuk I.","Szerkezeti anyagok és technológiájuk I.","Constructional Materials and Their Technology I.","Anyagtudomány?","kötelező","Dr. Gyurika István Gábor","Műszaki Tudományok Kutató-Fejlesztő Központ",null,"x",null,6,4,0,0,null,null,null,"Kollokvium (K)","ötfokozatú","Elsődleges tanterv: AM, GM\nTovábbi tanterv:",null,null,null,null,null,null,null,null,"Kötelező:\nAjánlott: "]
["Dr. Gyurika István Gábor Szerkezeti anyagok és technológiájuk II.","Szerkezeti anyagok és technológiájuk II.","Constructional Materials and Their Technology II.","Szerkezeti anyagok és technológiájuk I.","kötelező","Dr. Gyurika István Gábor","Műszaki Tudományok Kutató-Fejlesztő Központ","x",null,null,6,2,2,0,10,10,0,"Vizsga (V)","ötfokozatú","Elsődleges tanterv: GM\nTovábbi tanterv:",null,null,null,null,null,null,null,null,"Kötelező:\nAjánlott: "]
["Skodáné Dr. Földes Rita Szerves és biokémia alapjai","Szerves és biokémia alapjai","Organic and Biochemistry Basics","A kémia alapjai","kötelező","Skodáné Dr. Földes Rita","Természettudományi Központ",null,"x",null,6,4,0,0,20,0,0,"Vizsga (V)","ötfokozatú","Elsődleges tanterv: KE, KT, VM\nTovábbi tanterv:",null,null,null,null,null,null,null,null,"Kötelező:\nAjánlott: "]
[" Szerves és biokémia laboratóriumi gyakorlat","Szerves és biokémia laboratóriumi gyakorlat","Organic and Biochemistry Laboratory Practice","Szerves és biokémia alapjai","kötelező",null,"Természettudományi Központ","x",null,null,9,0,0,9,null,null,null,"Folyamatos számonkérés (F)","ötfokozatú","Elsődleges tanterv: KE\nTovábbi tanterv:",null,null,null,null,null,null,null,null,"Kötelező:\nAjánlott: "]
[" Szerves és szervetlen kémiai technológia","Szerves és szervetlen kémiai technológia","Organic and Inorganic Chemical Technology","Szerves és biokémia alapjai, Általános és szervetlen kémia","kötelező",null,"Természettudományi Központ",null,"x",null,3,2,0,0,null,null,null,"Kollokvium (K)","ötfokozatú","Elsődleges tanterv: KE\nTovábbi tanterv:",null,null,null,null,null,null,null,null,"Kötelező:\nAjánlott: "]
["Dr. Kaizer József Szerves kémia","Szerves kémia","Organic Chemistry","A kémia alapjai","kötelező","Dr. Kaizer József","Természettudományi Központ",null,"x",null,3,2,0,0,null,null,null,"Kollokvium (K)","ötfokozatú","Elsődleges tanterv: AM, BM, KM\nTovábbi tanterv:",null,null,null,null,null,null,null,null,"Kötelező:\nAjánlott: "]
["Skodáné Dr. Földes Rita Szerves kémia gyakorlat","Szerves kémia gyakorlat","Organic Chemistry Practice II.","Szerves és biokémia alapjai","kötelező","Skodáné Dr. Földes Rita","Természettudományi Központ","x",null,null,3,0,2,0,null,null,null,"Folyamatos számonkérés (F)","ötfokozatú","Elsődleges tanterv: KE\nTovábbi tanterv:",null,null,null,null,null,null,null,null,"Kötelező:\nAjánlott: "]
["Dr. Farkas Gergely Szerves kémia lab. gyak.","Szerves kémia lab. gyak.","Organic Chemistry Laboratory Practice","A kémia alapjai","kötelező","Dr. Farkas Gergely","Természettudományi Központ",null,"x",null,3,0,0,3,null,null,null,"Félévközi jegy (É)","ötfokozatú","Elsődleges tanterv: AM, VM\nTovábbi tanterv:",null,null,null,null,null,null,null,null,"Kötelező:\nAjánlott: "]
[" Szerves kémia vegyészeknek","Szerves kémia vegyészeknek","Organic Chemistry  for Chemists","Szerves és biokémia alapjai","kötelező",null,"Természettudományi Központ",null,"x",null,6,2,2,0,null,null,null,"Vizsga (V)","ötfokozatú","Elsődleges tanterv: KE\nTovábbi tanterv:",null,null,null,null,null,null,null,null,"Kötelező:\nAjánlott: "]
["Dr. Farkas Gergely Szerves vegyületek sztereokémiája","Szerves vegyületek sztereokémiája","Stereochemistry of Organic Compounds","Szerves kémia vegyészeknek","választható szakmai tárgy","Dr. Farkas Gergely","Természettudományi Központ","x",null,null,3,2,0,0,null,null,null,"Vizsga (V)","ötfokozatú","Elsődleges tanterv: KE\nTovábbi tanterv:",null,null,null,null,null,null,null,null,"Kötelező:\nAjánlott: "]
["Szabóné Dr. Bárdos Erzsébet Szervetlen kémia vegyészeknek","Szervetlen kémia vegyészeknek","Inorganic Chemistry for Chemists","Általános és szervetlen kémia","kötelező","Szabóné Dr. Bárdos Erzsébet","Természettudományi Központ","x",null,null,6,2,0,3,null,null,null,"Vizsga (V)","ötfokozatú","Elsődleges tanterv: KE\nTovábbi tanterv:",null,null,null,null,null,null,null,null,"Kötelező:\nAjánlott: "]
["Soósné Dr. Balczár Ida Anna Szilárdtest kémia I.","Szilárdtest kémia I.","Solid State Chemistry I.","Anyagtudomány","kötelező","Soósné Dr. Balczár Ida Anna","Műszaki Tudományok Kutató-Fejlesztő Központ",null,"x",null,12,4,4,0,null,null,null,"Vizsga (V)","ötfokozatú","Elsődleges tanterv: AM\nTovábbi tanterv:",null,null,null,null,null,null,null,null,"Kötelező:\nAjánlott: "]
["Kristófné dr. Makó Éva Szilárdtest kémia II.","Szilárdtest kémia II.","Solid State Chemistry II.","Anyagtudomány","kötelező","Kristófné dr. Makó Éva","Műszaki Tudományok Kutató-Fejlesztő Központ","x",null,null,3,2,0,0,null,null,null,"Kollokvium (K)","ötfokozatú","Elsődleges tanterv: AM\nTovábbi tanterv:",null,null,null,null,null,null,null,null,"Kötelező:\nAjánlott: "]
["Dr. Kiss Zsolt Talajremediáció","Talajremediáció","Soil Remediation",null,"specializáción kötelező","Dr. Kiss Zsolt","Soós Ernő Kutató-Fejlesztő Központ",null,"x",null,3,0,2,0,0,10,0,"Félévközi jegy (É)","ötfokozatú","Elsődleges tanterv: VZUBA\nTovábbi tanterv:",null,null,null,null,null,null,null,null,"Kötelező:\nAjánlott: "]
[" Talajtan, talajkémia, geológia és geofizika","Talajtan, talajkémia, geológia és geofizika","Soil Science, Soil Chemistry, Geology and Geophysics","Fizika I.","kötelező",null,"Természettudományi Központ",null,"x",null,6,3,1,0,null,null,null,"Vizsga (V)","ötfokozatú","Elsődleges tanterv: KM\nTovábbi tanterv:",null,null,null,null,null,null,null,null,"Kötelező:\nAjánlott: "]
[" Tanulásmódszertan","Tanulásmódszertan","Learning methodology"," ","kötelező",null,null,"x",null,null,0,2,0,0,10,0,0,"Folyamatos számonkérés (F)","ötfokozatú","Elsődleges tanterv: AM, BM, GM, KE, KT, KM, MM, VM\nTovábbi tanterv:",null,null,null,null,null,null,null,null,"Kötelező:\nAjánlott: "]
["Dr. Takács-Bárkányi Ágnes Technológia analízis","Technológia analízis","Analysis of Chemical Processes","Technológiai rendszerek modellezése","specializáción kötelező","Dr. Takács-Bárkányi Ágnes","Bio-, Környezet- és Vegyészmérnöki Kutató-Fejlesztő Központ",null,"x",null,9,3,3,0,null,null,null,null,"ötfokozatú","Elsődleges tanterv: VM\nTovábbi tanterv:",null,null,null,null,null,null,null,null,"Kötelező:\nAjánlott: "]
["Dr. Egedy Attila Technológia irányítása","Technológia irányítása","Control of Chemical Process Systems","Számítógéppel támogatott tervezés, Technológia analízis","specializáción kötelező","Dr. Egedy Attila","Bio-, Környezet- és Vegyészmérnöki Kutató-Fejlesztő Központ","x",null,null,9,3,3,0,null,null,null,null,"ötfokozatú","Elsődleges tanterv: VM\nTovábbi tanterv:",null,null,null,null,null,null,null,null,"Kötelező:\nAjánlott: "]
["Miskolczi Norbert Technológiai alapismeretek","Technológiai alapismeretek","Introduction to Chemical Technologies","Általános géptan, Műszaki áramlás- és hőtan I.","kötelező","Miskolczi Norbert","Bio-, Környezet- és Vegyészmérnöki Kutató-Fejlesztő Központ",null,"x",null,6,4,0,0,null,null,null,null,"ötfokozatú","Elsődleges tanterv: VM\nTovábbi tanterv:",null,null,null,null,null,null,null,null,"Kötelező:\nAjánlott: "]
["Dr. Németh Sándor Technológiai rendszerek modellezése","Technológiai rendszerek modellezése","Modeling of Technological Systems","Fizikai kémia","kötelező","Dr. Németh Sándor","Bio-, Környezet- és Vegyészmérnöki Kutató-Fejlesztő Központ","x",null,null,6,3,1,0,null,null,null,"Vizsga (V)","ötfokozatú","Elsődleges tanterv: BM, KM, VM\nTovábbi tanterv:",null,null,null,null,null,null,null,null,"Kötelező:\nAjánlott: "]
["Dr. Domokos Endre Gábor Térinformatika","Térinformatika","Geoinformatics",null,"kötelező","Dr. Domokos Endre Gábor","Bio-, Környezet- és Vegyészmérnöki Kutató-Fejlesztő Központ",null,"x",null,6,1,0,3,null,null,null,"Félévközi jegy (É)","ötfokozatú","Elsődleges tanterv: KM\nTovábbi tanterv:",null,null,null,null,null,null,null,null,"Kötelező:\nAjánlott: "]
["Dr. Miskolczi Norbert Terméktervezés","Terméktervezés","Product Design","(Ásványolaj technológia laborgyakorlat)","specializáción kötelező","Dr. Miskolczi Norbert","Bio-, Környezet- és Vegyészmérnöki Kutató-Fejlesztő Központ",null,"x",null,3,1,1,0,null,null,null,null,"ötfokozatú","Elsődleges tanterv: VM\nTovábbi tanterv:",null,null,null,null,null,null,null,null,"Kötelező:\nAjánlott: "]
["Skodáné Dr. Földes Rita Természetes vegyületek kémiája","Természetes vegyületek kémiája","Chemistry of Natural Compounds","Szerves kémia vegyészeknek","kötelező","Skodáné Dr. Földes Rita","Természettudományi Központ",null,"x",null,3,2,0,0,null,null,null,"Kollokvium (K)","ötfokozatú","Elsődleges tanterv: KE\nTovábbi tanterv:",null,null,null,null,null,null,null,null,"Kötelező:\nAjánlott: "]
["Dr. Stenger-Kovács Csilla Természetvédelem","Természetvédelem","Conservation Biology",null,"kötelező (KT), választható szakmai tárgy (KE)","Dr. Stenger-Kovács Csilla","Természettudományi Központ","x",null,null,3,2,0,0,10,0,0,"Folyamatos számonkérés (F)","ötfokozatú","Elsődleges tanterv: kötelező (KT), választható szakmai tárgy (KE)\nTovábbi tanterv:",null,null,null,null,null,null,null,null,"Kötelező:\nAjánlott: "]
["Dr. Kovács András Tervezés (AM BSc)","Tervezés (AM BSc)","Design","Szerves kémia","specializáción kötelező","Dr. Kovács András","Műszaki Tudományok Kutató-Fejlesztő Központ",null,"x",null,3,0,2,0,null,null,null,"Félévközi jegy (É)","ötfokozatú","Elsődleges tanterv: AM\nTovábbi tanterv:",null,null,null,null,null,null,null,null,"Kötelező:\nAjánlott: "]
["Dr. Kovács Nóra Julianna Toxikológia","Toxikológia","Toxicology","Biológia I.","kötelező","Dr. Kovács Nóra Julianna","Természettudományi Központ",null,"x",null,3,2,0,0,null,null,null,"Vizsga (V)","ötfokozatú","Elsődleges tanterv: KM\nTovábbi tanterv:",null,null,null,null,null,null,null,null,"Kötelező:\nAjánlott: "]
["Dr. Kovács Nóra Julianna Toxikológia, ökotoxikológia","Toxikológia, ökotoxikológia","Toxicology, Ecotoxicology","Biológia II.","kötelező, specializáción kötelező","Dr. Kovács Nóra Julianna","Természettudományi Központ","x","x","x",3,2,0,0,10,0,0,"Vizsga (V)","ötfokozatú","Elsődleges tanterv: kötelező - BM, spec.köt. - VZUBA\nTovábbi tanterv:",null,null,null,null,null,null,null,null,"Kötelező:\nAjánlott: "]
["Dr. Kovács Nóra Julianna Toxikológia, ökotoxikológia","Toxikológia, ökotoxikológia","Toxicology, Ecotoxicology","Biológia II.","specializáción kötelező","Dr. Kovács Nóra Julianna","Természettudományi Központ","x",null,null,6,2,0,2,10,0,10,"Vizsga (V)","ötfokozatú","Elsődleges tanterv: spec.köt. - KT\nTovábbi tanterv:",null,null,null,null,null,null,null,null,"Kötelező:\nAjánlott: "]
["Dr. Pethő Dóra Transzportfolyamatok ","Transzportfolyamatok ","Transport Phenomena and Thermodynamics","Matematika I., Fizika I.","kötelező","Dr. Pethő Dóra","Bio-, Környezet- és Vegyészmérnöki Kutató-Fejlesztő Központ","x",null,null,3,2,0,0,null,null,null,null,"ötfokozatú","Elsődleges tanterv: BM, KM, VM\nTovábbi tanterv:",null,null,null,null,null,null,null,null,"Kötelező:\nAjánlott: "]
["Dr. Padisák Judit Tudományos adatbázisok alkalmazása","Tudományos adatbázisok alkalmazása","Application of Scientific Databases",null,"kötelező","Dr. Padisák Judit","Természettudományi Központ","x",null,null,3,0,2,0,0,10,0,"Folyamatos számonkérés (F)","ötfokozatú","Elsődleges tanterv: KE, KT\nTovábbi tanterv:",null,null,null,null,null,null,null,null,"Kötelező:\nAjánlott: "]
[" Új módszerek a környezetanalitikában","Új módszerek a környezetanalitikában","New Methods in Environmental Analysis",null,"specializáción kötelező",null,"Soós Ernő Kutató-Fejlesztő Központ, Nagykanizsa","x",null,null,3,1,0,1,5,0,5,"Vizsga (V)","ötfokozatú","Elsődleges tanterv: VZUBA\nTovábbi tanterv:",null,null,null,null,null,null,null,null,"Kötelező:\nAjánlott: "]
["Dr. Korim Tamás Üvegek, tűzálló- és hőszigetelő anyagok technológiája","Üvegek, tűzálló- és hőszigetelő anyagok technológiája","Technology of Glasses, Heat-insulating and Refractory Materials","Kerámiák és kötőanyagok technológiája","kötelező/spec. kötelező","Dr. Korim Tamás","Műszaki Tudományok Kutató-Fejlesztő Központ",null,"x",null,6,2,2,0,10,10,0,"Kollokvium (K)","ötfokozatú","Elsődleges tanterv: kötelező - AM, sőec. köt. - GM\nTovábbi tanterv:",null,null,null,null,null,null,null,null,"Kötelező:\nAjánlott: "]
["Dr. Németh Csaba Vákuumtechnika","Vákuumtechnika","Vacuum Technology","Fizika II.","specializáción kötelező","Dr. Németh Csaba","Természettudományi Központ",null,"x",null,3,2,0,0,null,null,null,"Vizsga (V)","ötfokozatú","Elsődleges tanterv: MM\nTovábbi tanterv:",null,null,null,null,null,null,null,null,"Kötelező:\nAjánlott: "]
["Dr. Egedy Attila Vegyi gyár","Vegyi gyár","Chemical Plants",null,"specializáción kötelező","Dr. Egedy Attila","Bio-, Környezet- és Vegyészmérnöki Kutató-Fejlesztő Központ","x",null,null,3,1,1,0,null,null,null,"Félévközi jegy (É)","ötfokozatú","Elsődleges tanterv: VM\nTovábbi tanterv:",null,null,null,null,null,null,null,null,"Kötelező:\nAjánlott: "]
["Dr. Miskolczi Norbert Vegyipari technológiák","Vegyipari technológiák","Sustainable Chemical Engineering Technologies","Művelettan, Anyagtudomány","specializáción kötelező","Dr. Miskolczi Norbert","Bio-, Környezet- és Vegyészmérnöki Kutató-Fejlesztő Központ",null,"x",null,6,4,0,0,null,null,null,null,"ötfokozatú","Elsődleges tanterv: VM\nTovábbi tanterv:",null,null,null,null,null,null,null,null,"Kötelező:\nAjánlott: "]
["Dr. Miskolczi Norbert Veszteségmegelőzés a vegyiparban","Veszteségmegelőzés a vegyiparban","Loss Prevention in Chemical Industries","Fizikai kémia","kötelező","Dr. Miskolczi Norbert","Bio-, Környezet- és Vegyészmérnöki Kutató-Fejlesztő Központ","x",null,null,2,1,1,0,null,null,null,null,"ötfokozatú","Elsődleges tanterv: VM\nTovábbi tanterv:",null,null,null,null,null,null,null,null,"Kötelező:\nAjánlott: "]
[" Villamos gépek","Villamos gépek","Electrical Machines",null,"kötelező",null,"MIK",null,"x",null,6,4,0,0,20,0,0,"Vizsga (V)","ötfokozatú","Elsődleges tanterv: GM\nTovábbi tanterv:",null,null,null,null,null,null,null,null,"Kötelező:\nAjánlott: "]
["Dr. Kurdi Róbert Vízépítési műtárgyak és rekonstrukciójuk","Vízépítési műtárgyak és rekonstrukciójuk","Hidraulic Structures and Reconstruction of Hidraulics Structures",null,"kötelező","Dr. Kurdi Róbert","Soós Ernő Kutató-Fejlesztő Központ",null,"x",null,3,2,0,0,10,0,0,"Folyamatos számonkérés (F)","ötfokozatú","Elsődleges tanterv: VZUBA\nTovábbi tanterv:",null,null,null,null,null,null,null,null,"Kötelező:\nAjánlott: "]
["Dr. Somogyi Viola Víz- és szennyvíz labor","Víz- és szennyvíz labor","Laboratory Practice in Water and Wastewater Treatment","Víz- és szennyvíztisztítás","kötelező","Dr. Somogyi Viola","Bio-, Környezet- és Vegyészmérnöki Kutató-Fejlesztő Központ",null,"x",null,6,0,0,6,null,null,null,"Folyamatos számonkérés (F)","ötfokozatú","Elsődleges tanterv: KM\nTovábbi tanterv:",null,null,null,null,null,null,null,null,"Kötelező:\nAjánlott: "]
["Dr. Somogyi Viola Víz- és szennyvíztisztítás","Víz- és szennyvíztisztítás","Water and Wastewater Treatment","Műszaki áramlás- és hőtan I.","kötelező","Dr. Somogyi Viola","Bio-, Környezet- és Vegyészmérnöki Kutató-Fejlesztő Központ","x",null,null,9,3,3,0,null,null,null,"Vizsga (V)","ötfokozatú","Elsődleges tanterv: KM\nTovábbi tanterv:",null,null,null,null,null,null,null,null,"Kötelező:\nAjánlott: "]
["Dr. Stenger-Kovács Csilla Víz Keretirányelv és élőlénycsoportjai I.","Víz Keretirányelv és élőlénycsoportjai I.","Water Framework Directive and Biological Quality Elements II.",null,"specializáción kötelező","Dr. Stenger-Kovács Csilla","Természettudományi Központ","x",null,null,6,2,2,0,10,10,0,"Folyamatos számonkérés (F)","ötfokozatú","Elsődleges tanterv: KT\nTovábbi tanterv:",null,null,null,null,null,null,null,null,"Kötelező:\nAjánlott: "]
["Dr. Stenger-Kovács Csilla Víz Keretirányelv és élőlénycsoportjai II.","Víz Keretirányelv és élőlénycsoportjai II.","Water Framework Directive and Biological Quality Elements II.","Víz Keretirányelv és élőlénycsoportjai I.","specializáción kötelező","Dr. Stenger-Kovács Csilla","Természettudományi Központ",null,"x",null,6,2,2,0,10,10,0,"Folyamatos számonkérés (F)","ötfokozatú","Elsődleges tanterv: specializáción kötelező - KT\nTovábbi tanterv:",null,null,null,null,null,null,null,null,"Kötelező:\nAjánlott: "]
["Dr. Somogyi Viola Vízgazdálkodás, szennyvíztisztítás","Vízgazdálkodás, szennyvíztisztítás","Water Management, Wastewater Treatment",null,"kötelező","Dr. Somogyi Viola","Soós Ernő Kutató-Fejlesztő Központ",null,"x",null,6,3,0,1,15,0,5,"Vizsga (V)","ötfokozatú","Elsődleges tanterv: VZUBA\nTovábbi tanterv:",null,null,null,null,null,null,null,null,"Kötelező:\nAjánlott: "]
["Dr. Horváth Pál Vízgépek","Vízgépek","Water Machines",null,"specializáción kötelező","Dr. Horváth Pál","Soós Ernő Kutató-Fejlesztő Központ",null,"x",null,6,0,4,0,0,20,0,"Vizsga (V)","ötfokozatú","Elsődleges tanterv: GM\nTovábbi tanterv:",null,null,null,null,null,null,null,null,"Kötelező:\nAjánlott: "]
["Dr. Hubai Katalin Eszter Vízkémia alapjai","Vízkémia alapjai","Basics of Water Chemistry","A kémia alapjai","specializáción kötelező","Dr. Hubai Katalin Eszter","Természettudományi Központ","x",null,null,3,0,2,0,0,10,0,"Folyamatos számonkérés (F)","ötfokozatú","Elsődleges tanterv: KT\nTovábbi tanterv:",null,null,null,null,null,null,null,null,"Kötelező:\nAjánlott: "]
["Gerencsérné Dr. Berta Renáta Vízkémia mérnököknek","Vízkémia mérnököknek","Water Chemistry for Engineering",null,"kötelező","Gerencsérné Dr. Berta Renáta","Soós Ernő Kutató-Fejlesztő Központ",null,"x",null,3,1,0,1,5,0,5,"Folyamatos számonkérés (F)","ötfokozatú","Elsődleges tanterv: VZUBA\nTovábbi tanterv:",null,null,null,null,null,null,null,null,"Kötelező:\nAjánlott: "]
["Dr. Galambos Ildikó Vízkezelés","Vízkezelés","Water Treatment",null,"kötelező (VZUBA), specializáción kötelező (GM)","Dr. Galambos Ildikó","Soós Ernő Kutató-Fejlesztő Központ",null,"x",null,6,2,0,2,10,0,10,"Vizsga (V)","ötfokozatú","Elsődleges tanterv: kötelező - VZUBA, spec. köt. - GM\nTovábbi tanterv:",null,null,null,null,null,null,null,null,"Kötelező:\nAjánlott: "]
["Dr. Galambos Ildikó Vízkezelő rendszerek üzemeltetése","Vízkezelő rendszerek üzemeltetése","Operation of Water Treatment Systems",null,"kötelező (VZUBA), specializáción kötelező (GM)","Dr. Galambos Ildikó","Soós Ernő Kutató-Fejlesztő Központ","x",null,null,6,0,4,0,0,20,0,"Félévközi jegy (É)","ötfokozatú","Elsődleges tanterv:  kötelező - VZUBA, spec. köt. - GM\nTovábbi tanterv:",null,null,null,null,null,null,null,null,"Kötelező:\nAjánlott: "]
["Dr. Bíró Ildikó Vízmikrobiológia","Vízmikrobiológia","Water Microbiology",null,"kötelező","Dr. Bíró Ildikó","Soós Ernő Kutató-Fejlesztő Központ","x",null,null,3,1,0,1,5,0,5,"Folyamatos számonkérés (F)","ötfokozatú","Elsődleges tanterv: VZUBA\nTovábbi tanterv:",null,null,null,null,null,null,null,null,"Kötelező:\nAjánlott: "]
["Dr. Sebestyén Viktor Zaj- és rezgésvédelem","Zaj- és rezgésvédelem","Noise and Vibration Protection","Fizika I.","kötelező","Dr. Sebestyén Viktor","Bio-, Környezet- és Vegyészmérnöki Kutató-Fejlesztő Központ",null,"x",null,3,2,0,0,null,null,null,"Vizsga (V)","ötfokozatú","Elsődleges tanterv: KM\nTovábbi tanterv:",null,null,null,null,null,null,null,null,"Kötelező:\nAjánlott: "]
["Dr. Liker András Zoológia","Zoológia","Zoology","Biológia I. ","specializáción kötelező","Dr. Liker András","Természettudományi Központ","x",null,null,3,1,1,0,5,5,0,"Félévközi jegy (É)","ötfokozatú","Elsődleges tanterv: KT\nTovábbi tanterv:",null,null,null,null,null,null,null,null,"Kötelező:\nAjánlott: "]

{"sheet":"Munka1","index":1,"n_rows":0,"n_cols":0,"rows_kept":0,"cut":false,"hidden":false,"merged":[]}

{"sheet":"ADATLAP","index":2,"n_rows":27,"n_cols":11,"rows_kept":27,"cut":false,"hidden":false,"merged":[[26,0,26,10],[4,0,4,4],[4,5,4,10],[0,0,0,10],[1,1,1,10],[2,1,2,10],[3,9,3,10],[3,0,3,3],[3,7,3,8],[3,4,3,6],[5,0,5,4],[5,5,5,10],[7,7,7,10],[8,7,8,10],[8,4,8,6],[10,0,10,10],[6,0,6,1],[7,4,7,6],[6,8,6,9],[11,0,11,10],[9,4,9,6],[9,7,9,10],[14,0,14,10],[12,1,12,10],[13,1,13,10],[18,0,18,10],[25,0,25,10],[22,1,22,10],[17,0,17,10],[15,1,15,10],[16,1,16,10],[19,1,19,10],[24,0,24,10],[20,1,20,10],[21,0,21,10],[23,1,23,10]]}
["Tantárgy neve / Course name"]
["magyarul","Fizikai kémia"]
["angolul","Physical Chemistry"]
["Kötelező előtanulmány(ok) kódja(i):",null,null,null,"Matematika I., Fizika I., A kémia alapjai",null,null,"Tantárgy típusa (elsődleges tanterven): ",null,"Kötelező"]
["Tárgyfelelős oktató neve: ",null,null,null,null,"Tárgyfelelős egység neve: "]
["Boda Dezső",null,null,null,null,"Természettudományi Központ"]
["Az oktatás féléve:",null,"őszi",null,"tavaszi",null,"mindkettő",null,"Kreditértéke: ",null,6]
["Óraigény","előadás","szeminárium","lab.gyak.","Számonkérés formája ",null,null,"Kollokvium (K)"]
["Nappali (óra/hét)",4,0,0,"Értékelés típusa",null,null,"ötfokozatú"]
["Levelező (óra/félév)",20,0,0,"A meghirdetés mintatantervei:",null,null,"Elsődleges tanterv: Anyagmérnöki alapszak, Biomérnöki alapszak, Kémia alapszak, Környezetmérnöki alapszak, Vegyészmérnöki alapszak"]
["Oktatás célja"]
["Az előírt szakmai kompetenciáknak, kompetencia-elemeknek a felsorolása, amelyek kialakításához a tantárgy jellemzően, érdemben hozzájárul (tudás, képesség, attitűd, autonómiája és felelőssége)"]
["magyarul","A fizikai kémia alapjainak megismerése.\nT1 Ismeri a kémia alapvető kvalitatív és kvantitatív összefüggéseit, törvényszerűségeit, és az ezekre alapozott alapvető kémiai módszereket.\nT7 Rendelkezik azokkal az ismeretekkel, amelyek (megfelelő szakmai irányítással) lehetővé teszik számára a vizsgálható kémiai folyamatok, rendszerek, tudományos problémák tudományos gyakorlatban elfogadott módszerekkel történő tesztelését, a mérési eredmények számítógépes feldolgozását.\nK1 Képes a természeti és az ezekkel összefüggésben lévő antropogén kémiai folyamatok megértésére, az azokkal kapcsolatos adatgyűjtésre, az adatok feldolgozására, valamint a feldolgozáshoz szükséges kémiai szakirodalom használatára.\nK8 Ismeretei alapján rendelkezik a természettudományos alapokon nyugvó érvelés képességével.\nA7 Elkötelezett új kompetenciák elsajátítására és világképének bővítésére.F3 A természettudományos világnézetet szakmai megbeszélések, viták során felelősséggel vállalja. "]
["angolul","Teach basic knowledge of physical chemistry.\nT1 Possess a fundamental knowledge of understanding basic qualitative and quantitative relationships and concepts of chemistry and chemical methodologies based thereon.\nA7 Committed to acquiring new competencies and expanding his/her worldview.\nF3 Can take responsibility for a scientific approach in professional discussions and debates. \nT7 Possess fundamental knowledge, that, with the proper professional instructions, enables him/her to test the examined chemical processes, systems, and methods as it is accepted in the scientific practice and to analyze the measurement results.\nK1 Ability to understand the natural and anthropogenic chemical processes, to collect and process data and to use the chemical literature needed for the processing related thereto. \nK8 Use of a science-based reasoning ability, based on the learned scientific skills"]
["Tantárgy tartalma, elsajátítandó ismeretanyag tömör, informáló leírása "]
["magyarul","A kémiai termodinamika alapfogalmai (fal, rendszer, tulajdonság, konvenciók, hőmérséklet, egyensúly, reverzibilitás, stb.). Belső energia, hő, munka. A termodinamika első főtétele és második főtétele. Az entrópia. Harmadik főtétel. Az entrópiamaximum és az energiaminimum elve. Kinetikus gázelmélet. Gibbs-egyenlet. Az intenzív állapotjelzők definíciói. Euler-egyenlet. Termikus, mechanikai és komponensegyensúly. Carnot-ciklus, termodinamikai hatásfok. Energiafüggvények. Gibbs-Helmholtz- és Gibbs-Duhem-egyenletetek. Maxwell-relációk. Volumetrikus tulajdonságok és hőkapacitások. Az energiafüggvények változásai. Termokémia. Ideális gáz állapotváltozásai. Poisson-egyenletek. Ideális gáz termodinamikai tulajdonságainak számítása, térfogati munka és hőforgalom számítása.  \n\nIntermolekuláris kölcsönhatások. Reális gázok állapotegyenletei. Kompresszibilitási tényező. Viriálegyenlet, van der Waals-egyenlet. A van der Waals-egyenlet és a kritikus tulajdonságok kapcsolata. Megfelelő állapotok tétele. Reális gázok tulajdonságai. Az entalpia izoterm nyomáskorrekciója. Fugacitás. Joule-Thomson-effektus. Kondenzált fázisok. Párkorrelációs függvény. Kristályszerkezetek, kristályok energiája, hőkapacitása. Folyadékok tulajdonságai, folyadékok áramlása, viszkózus áramlás. Különleges szerkezetek: víz, folyadékkristályok, üvegek. \n\nElektromos és mágneses tulajdonságai. Debye-egyenlet, Langevin-egyenlet. Elegyek. Parciális moláris mennyiségek. Ideális elegyedés. Reális elegyek, aktivitás, termodinamikai többlettulajdonságok. Ionszolvatáció. Elektrolit oldatok. Debye-Hückel-egyenlet. \n\nEgykomponensű rendszerek fázisegyensúlya, jellemző diagramok, gőz-folyadék egyensúly. Gibbs-féle fázisszabály. Clapeyron-egyenlet, Clausius-Clapeyron-egyenlet. Szilárd-gőz és szilárd-folyadék egyensúly. Fázisdiagramok. A fázisok stabilitásának feltételei. Első- és másodrendű fázisátalakulás. \n\nTöbbkomponensű rendszerek fázisegyensúlya. Gőz-folyadék egyensúlyok ideális és reális elegyekben, Raoult-törvény, Raoult-Dalton-törvény, módosított Raoult-Dalton-törvény, fázisdiagramok, elválasztási tényező, pozitív és negatív eltérésű elegyek, azeotrópok. Gáz-folyadék egyensúlyok, a Henry-törvény. A desztilláció alapjai, frakcionált desztilláció, rektifikálás. Folyadék-folyadék egyensúlyok. A szételegyedés termodinamikai alapjai. Két- és háromkomponensű rendszerek egyensúlyi diagramjai. Megoszlási egyensúlyok, a Nernst-törvény. Nemelegyedő és korlátozottan elegyedő folyadékok gőz-folyadék egyensúlya. Vízgőzdesztilláció. Folyadék-szilárd egyensúlyok. Szilárd fázisban nem elegyedő, részlegesen és teljesen elegyedő komponensek fázisdiagramjai, eutektikumok, vegyületalkotás, lehűlési görbék. Kolligatív sajátságok. Forráspontemelkedés, fagyáspontcsökkenés, ozmózis, fordított ozmózis.\n\nKémiai egyensúlyok. Termodinamikai feltétel, reakcióegyenlet, sztöchiometriai együtthatók, reakciókoordináta, a reakció standard szabadentalpia-változása, kémiai egyensúlyi állandó, tömeghatástörtek. hőmérséklet- és nyomásfüggés. Jelenségek: egyensúlyi konverzió, homogén és heterogén egyensúlyok, oldhatósági és disszociációs egyensúlyok, ioncserélők.\n\nEgyensúlyi elektrokémia. Galvani-potenciál, nemozmotikus membránegyensúly, kontakt egyensúly, termoelemek. Az elektród fogalma, elektródreakciók, elsőfajú, másodfajú, gáz, és redoxi elektród, standard elektródpotenciálok. Elektrokémiai cellák, elektrolizáló cella, elektrokémiai megmunkálás, galváncella, elektromotoros erő, celladiagram, diffúziós potenciál. Jelenségek (kémiai egyensúlyi állandó, pH és oldhatósági szorzat meghatározása) és fontosabb elemek (Daniell, Leclanche, Ruben-Mallory, alkáli, kénsavas ólomakkumulátor, hidrogén-oxigén tüzelőanyag cella).\n\nReakciókinetika. A reakció előrehaladási foka, reakciósebesség, sebességi egyenlet, reakció rendje, sebességi állandó. Aktív komplex elmélete, Arrhenius-egyenlet, aktiválási energia. A reakciók nyomon követése. Reakciók osztályozása, elemi reakciók, elsőrendű és másodrendű reakciók. A reakciórend meghatározása. Összetett reakciók: egyensúlyra vezető, párhuzamos, egymást követő, és katalitikus reakciók. Katalizátor, homogén és heterogén katalízis, enzimkatalitikus reakciók. \n\nTranszportfolyamatok. Nem-egyensúlyi termodinamika, entrópiaprodukció, általánosított termodinamikai hajtóerő, extenzív mennyiségek árama, áramsűrűsége. Átadásos és áramlásos transzport, transzportegyenletek. Impulzustranszport, hővezetés. Diffúzió, komponenstranszport, Fick I. törvénye, diffúziós tényező, mérlegyenletek, Fick II. törvénye. Diffúzió statisztikai értelmezése, Einstein-Smoluchowski-egyenlet, Stokes-Einstein egyenlet, kereszteffektusok. Elektrolitikus vezetés, Ohm törvénye, fajlagos vezetés, moláris fajlagos vezetés, végtelenül híg oldat moláris fajlagos vezetése, ionok független vándorlásának törvénye, erős (Kohlrausch-szabály) és gyenge elektrolitok (disszociáció). Elektrolitikus vezetés molekuláris leírása, ionmozgékonyság. Kapcsolat a diffúzióval, Einstein és Nernst-Einstein összefüggések, elektrodiffúzió, a Nernst-Planck egyenlet.  Elektródreakciók kinetikája, töltésátlépési reakció, redukció (katódos részáram), oxidáció (anódos részáram), csereáramsűrűség, polarizáció, Butler-Volmer-Erdey-Grúz-egyenlet, Tafel-egyenlet. Elektrokinetikus jelenségek: áramlási, ülepedési potenciál, elektroozmózis, elektroforézis, elektromos kettősréteg.\n\nFelületi jelenségek. Felületi feszültség, energetikai értelmezés, felületi munka, Young-Laplace-egyenlet. Folyadék-gáz határfelületek, kapillaritás. Kelvin-egyenlet. Határfelületi adszorpció, deszorpció, Gibbs adszorpciós izoterma egyenlete, kapilláraktivitás, felületaktív anyagok, felületi filmek, nedvesítés, Hardy-Harkins-elv.  Gázok adszorpciója szilárd felületen, adszorpciós izoterma, izobár és izosztera. Egyrétegű adszorpció (Langmuir-elmélet), fiziszorpció és kemiszorpció, többrétegű adszorpció (BET-egyenlet). Tipikus adszorbensek, pórusok, fajlagos felület. Kapilláris kondenzáció, izotermatípusok. Adszorpció nemelektrolit oldatokból. "]
["angolul","Basic concepts of chemical thermodynamics (wall, system, property, conventions, temperature, equilibrium, reversibility, etc.) Internal energy, heat, work. First and second law of thermodynamics. Entropy. Third law. Maximum of entropy and minimum of energy. Kinetic gas theory. Gibbs equation. Definitions of intensive state indicators. Euler's equation. Thermal, mechanical and component equilibria. Carnot cycle, thermodynamic efficiency. Energy functions. Gibbs-Helmholtz and Gibbs-Duhem equations. Maxwell relations. Volumetric properties and heat capacities. Changes in energy functions. Thermochemistry. Changes of state of an ideal gas. Poisson's equations. Calculation of thermodynamic properties of ideal gas, volumetric work and heat flux.    \n\nIntermolecular interactions. Equations of state of real gases. Compressibility factor. Virial equation, van der Waals equation. Relationship between van der Waals equation and critical properties. Conforming states theorem. Properties of real gases. Isothermal pressure correction of enthalpy. Fugacity. Joule-Thomson effect. Condensed phases. Pair correlation function. Crystal structures, energy of crystals, heat capacity. Properties of liquids, fluid flow, viscous flow. Special structures: water, liquid crystals, glasses. Electrical and magnetic properties. Debye equation, Langevin equation. Mixtures. Partial molar quantities. Ideal mixing. Real mixtures, activity, thermodynamic excess properties. Ion solvation. Electrolyte solutions. Debye-Hückel equation.   \n\nPhase equilibrium of one-component systems, characteristic diagrams, vapour-liquid equilibrium. Gibbs phase rule. Clapeyron equation, Clausius-Clapeyron equation. Solid-vapour and solid-liquid equilibria. Phase diagrams. Conditions for stability of phases. First and second order phase transformations.   \n\nPhase equilibria of multicomponent systems. Vapour-liquid equilibria in ideal and real mixtures, Raoult's law, Raoult-Dalton law, modified Raoult-Dalton law, phase diagrams, separation factor, positive and negative deviation mixtures, azeotropes. Gas-liquid equilibria, Henry's law. Basics of distillation, fractional distillation, rectification. Liquid-liquid equilibria. Thermodynamic fundamentals of phase separation. Equilibrium diagrams of two and three component systems. Distribution equilibria, Nernst's law. Vapour-liquid equilibria of non-miscible and partially miscible liquids. Water vapour distillation. Liquid-solid equilibria. Phase diagrams of non-miscible, partially and fully miscible components in solid phase, eutectics, compound formation, cooling curves. Colligative properties, boiling point rise, freezing point depression, osmosis, reverse osmosis.  \n\nChemical equilibria. Thermodynamic condition, equation of reaction, stoichiometric coefficients, reaction coordinate, standard free energy change of reaction, chemical equilibrium constant, mass effect constants, temperature and pressure dependence. Phenomena: equilibrium conversion, homogeneous and heterogeneous equilibria, solubility and dissociation equilibria, ion exchangers.  \n\nEquilibrium electrochemistry. Galvanic potential, nonosmotic membrane equilibrium, contact equilibrium, thermocouples. Concept of electrode, electrode reactions, primary, secondary, gas, and redox electrodes, standard electrode potentials. Electrochemical cells, electrolytic cell, electrochemical machining, galvanic cell, electromotive force, cell diagram, diffusion potential. Phenomena (determination of chemical equilibrium constants, pH, and solubility) and important batteries (Daniell, Leclanche, Ruben-Mallory, alkaline, lead sulphuric acid, hydrogen-oxygen fuel cell). \n\nReaction kinetics. Degree of reaction progress, reaction rate, rate equation, reaction order, rate constant. Active complex theory, Arrhenius equation, activation energy. Monitoring of reactions. Classification of reactions, elementary reactions, first and second order reactions. Determination of reaction order. Complex reactions: equilibrium, parallel, sequential, and catalytic reactions. Catalyst, homogeneous and heterogeneous catalysis, enzyme catalytic reactions. \n\nTransport processes. Non-equilibrium thermodynamics, entropy production, generalized thermodynamic driving force, current of extensive quantities, current density. Transfer and flow transport, transport equations. Momentum transport, heat conduction. Diffusion, component transport, Fick's law I, diffusion coefficient, balance equations, Fick's law II. Statistical interpretation of diffusion, Einstein-Smoluchowski equation, Stokes-Einstein equation, cross effects. Electrolytic conduction, Ohm's law, specific conductance, molar specific conductance, molar specific conductance of infinitely dilute solution, law of independent migration of ions, strong (Kohlrausch's law) and weak electrolytes (dissociation). Molecular description of electrolytic conduction, ion mobility. Relationship with diffusion, Einstein and Nernst-Einstein relations, electrodiffusion, Nernst-Planck equation.  Kinetics of electrode reactions, charge transfer reaction, reduction (cathodic current), oxidation (anodic current), exchange current density, polarisation, Butler-Volmer-Erdey-Grúz equation, Tafel equation. Electrokinetic phenomena: flow and sedimentation potential, electroosmosis, electrophoresis, electric double layer.  \n\nSurface phenomena. Surface tension, energetic interpretation, surface work, Young-Laplace equation. Liquid-gas interfaces, capillarity. Kelvin equation. Interfacial adsorption, desorption, Gibbs adsorption isotherm equation, capillary activity, surfactants, surface films, wetting, Hardy-Harkins principle. Adsorption of gases on solid surfaces, adsorption isotherm, isobar and isostere. Monolayer adsorption (Langmuir theory), physisorption and chemisorption, multilayer adsorption (BET equation). Typical adsorbents, pores, specific surface area. Capillary condensation, isoterm types. Adsorption from non-electrolyte solutions."]
["Számonkérési és értékelési rendszer"]
["Számonkérés módja"]
["magyarul \n","Írásbeli és szóbeli vizsga (kollokvium, K)"]
["angolul","Written and oral exam (colloquium)."]
["Leckekönyv-aláírási feltételek"]
["magyarul \n","Az órák látogatása kötelező. Az aláírást csak akkor kaphatja meg a hallgató, ha a hiányzások száma nem haladja meg a HKR-ben foglaltakat."]
["angolul","The student’s semester will be endorsed only if the absences are not overrun the number of the allowed absent days defined in HKR (Academic Regulations for Students)."]
["Irodalmak"]
["Kötelező: Liszi, J.: Fizikai kémia, Veszprém, 1993. Kézirat.  \nAjánlott:  Zrínyi, M.: A fizikai kémia alapjai, Semmelweis Kiadó, Budapest, 2015.\n                 Keszei Ernő: Bevezetés a kémiai termodinamikába, ELTE, 2007, kézirat\n                 Atkins,W.,P.: Fizikai Kémia I-III., Tankönyvkiadó, Budapest, 1990. \n                 Atkins,W. P., De Paula, J., Keeler, J.: Atkins' Physical Chemistry, 12th edition, Oxford University Press, Oxford, 2022. \n                 Fizikai kémia I. (BME): http://dtk.tankonyvtar.hu/xmlui/handle/123456789/7921"]
["Tanszékvezető aláírása:                                                                                                 Oktató aláírása:"]

{"sheet":"MINTA_Számonkérési rendszerre","index":3,"n_rows":9,"n_cols":3,"rows_kept":9,"cut":false,"hidden":false,"merged":[]}
["MINTA: Számonkérési és értékelési rendszer megadására"]
[null,"magyarul","angolul"]
[1,"A szóbeli vizsgán fél órás felkészülés után 20-25 perc áll a hallgató rendelkezésére a vizsgakérdés/témakör kifejtésére.\nElégtelen (1) a felelet, ha a vizsgázó sem a témakör rövid vázlatát, sem pedig a témához kapcsolódó alapfogalmak definícióját nem tudja megadni.\nElégséges (2) a felelet, ha a vizsgázó a kérdéskör alapfogalmait értelmezni tudja.\nKözepes (3) a felelet, ha a vizsgázó ismeri a kérdéskör alapfogalmait, s tanári segítséggel képes a témakör logikai összefüggéseinek bemutatására is.\nJó (4) a felelet, ha a vizsgázó logikusan felépített válaszában önállóan kifejti a tétel (vizsgakérdés) valamennyi fontos tényét, összefüggését, ám a tételhez kapcsolódó kötelező irodalmat nem, vagy csak hiányosan ismeri.\nJeles (5) a felelet, ha a vizsgázó mind a tétel, mind pedig a kötelező irodalom ismeretéről logikusan felépített, önálló, részleteiben is kifogástalan, az összefüggéseket hiánytalanul feltáró válasz keretében tesz tanúbizonyságot.","After a half an hour's preparation the examinee gives an oral presentation on the topic for about 20-25 minutes.\nFail (1) when the examinee is unable to prove either the definition of the basic notions or the short scheme of things connected with the topic.\nPass (2) when the examinee is able to interpret the basic notions of the topic.\nSatisfactory (3) when the examinee is well - versed in the basic notions of the topic and is able to present their logic connections - with the help of the examiner.\nGood (4) when the examinee provides a logic, well - structured presentation with all the important facts and connections but he does not know or partly knows the required reading material connected with the topic.\nVery good (5) when the examinee gives a logic, excellent, well-structured, perfect in details oral presentation that completely reveals the connection of the concepts within the topic.\n"]
[2,"Az írásbeli vizsgán előadások teljes anyaga szerepel.\nAz értékelés két évközi zárthelyi dolgozat és egy írásbeli vizsga alapján történik\nAz érdemjegyet a három dolgozat eredményének súlyozott átlagolásával (1. évközi ZH 15 %, 2. évközi ZH 20%, vizsgadolgozat 65%) kapott pontszámból állapítjuk meg az alábbi táblázat alapján:\npontszám érdemjegy\n80 felett jeles (5)\n70-79 jó (4)\n60-69 közepes (3)\n50-59 elégséges (2)\n50 alatt elégtelen (1)","The whole content of lectures is included in the written examination.\nGrading is based on two written midterm examinations and one written final examination.\nThe final mark is determined according to following table based on the weighted average of the three examinations (1st midterm 15%, 2nd midterm 20%, final written examination 65%):\npoints final mark\nabove 80 excellent (5)\n70-79 good (4)\n60-69 medium (3)\n50-59 pass (2)\nbelow 50 fail (1)"]
[3,"Az írásbeli vizsgán előadások és évközi feladatok teljes anyaga szerepel.\nA vizsgadolgozat 5 témakör részletes kifejtéséből áll. Az egyes válaszokat 0-20 ponttal értékeljük. A 20 pont eléréséhez a témakör lényegének kb. 1 oldalon való kifejtése szükséges.\nAz érdemjegyet az írásbeli vizsgára kapott max. 100 pont, az évközi feladatokra kapott max.60 pont és az önálló, választott feladat megoldására kapott max. 40 pont egyszerű összegzésével kapott pontszámból állapítjuk meg az alábbi táblázat alapján:\npontszám érdemjegy\n160 felett jeles (5)\n140-159 jó (4)\n120-139 közepes (3)\n100-119 elégséges (2)\n100 alatt elégtelen (1)","The whole content of lectures and the assignments are included in the written examination.\nThe written examination consists of the detailed discussion of 5 topics. Each answer is graded up to 20 points. To get 20 points the overview and explanation of the main points of the topic is required in approximately 1 page.\nThe final mark is determined according to following table based on the simple sum of the points obtained for the written examination (max 100), for the three mid-term assignments (max 60) and for the individual project (max 60):\npoints final mark\nabove 160 excellent (5)\n140-159 good (4)\n120-139 medium (3)\n100-119 pass (2)\nbelow 100 fail (1)"]
[4,"A félév során a hallgató egy évközi és egy félévzáró zárthelyi dolgozatot ír. A gyakorlati jegy a két dolgozatra kapott érdemjegy súlyozott (kerekített) számtani átlaga. A félévzáró zárthelyi érdemjegye kettes súllyal van figyelembe véve. Feltétel, hogy a félévzáró dolgozat érdemjegye minimálisan elégsé¬ges legyen és a két dolgozat átlageredménye 2,00-nál jobb legyen.","Students must write two papers in a semester, one paper during the semester and one at the end of it.  The final mark is the weighed mean value (rounded) of the two marks received for the two papers. The mark of the second (at the end of the semester) paper is multiplied by two. The mark of the second paper is strictly required to be at least 2, and the mean value of the two papers must be better than  2.00."]
[5,"Az értékelés a három gyakorlat, az egyéni feladat  és az írásbeli beszámoló alapján történik\nAz írásbeli beszámoló a bevezető előadások és a laboratóriumi gyakorlatok teljes anyaga szerepel.\nAz írásbeli beszámoló minden gyakorlathoz és az egyéni feladathoz 2 kisebb és 1 nagyobb kérdést tartalmaz A kisebb, röviden megválaszolandó kérdések vagy feladatok, az alapfogalmak és módszerek átfogó ismeretét ellenőrzését célozzák és a néhány mondat terjedelmű válaszokra egyenként 5 pont adható.\nA nagyobb, részletesen kifejtendő kérdések, a konkrét eszközökkel vagy feladatokkal kapcsolatos ismeretekre és módszerekre vonatkoznak és kb. 1/2-1 oldal terjedelmű választ igényelnek néhány ábrával. Ezekre egyenként 15 pont adható.\nAz írásbeli beszámoló pontszámát (max. 100 pont) a végső érdemjegyben 36% súllyal vesszük figyelembe","The whole content of the introductory lectures and the laboratory assignments are included in the written examination.\nThe written examination includes two \"small\" and one \"big\" question for each assignment including the individual project. The \"small\" questions require short answers (usually a few sentences) and aimed at the assessment of overall knowledge of terminology and methods. Up to 5 points can be obtained for each answer.\nThe \"big\" questions require detailed discussion of the theory and methods of the actual tools or problems (usually ½-1 page with few figures). Each answer is graded up to 15 points.\nThe result of the written examination (max 100 points) is weighted by 36% when it is taken into account in the final mark.\n"]
[6,"A laboratóriumi gyakorlat értékelése: a gyakorlati munkákra kapott érdemjegyek, valamint a hetenként megírt írásbeli beszámolók és a félévvégi összefoglaló írásbeli beszámoló érdemjegyének súlyozott átlaga. Feltétel, hogy a gyakorlatok és az évközi beszámolók 50%-a, továbbá a félévvégi beszámoló legalább elégséges érdemjegyű legyen.","Evaluation of the laboratory practice: the final mark is the weighted mean value of the marks received for the practical tasks, the papers written each week and the final paper written at the end of the semester. It is strictly required that the paper written at the end of the semester and 50% of the practical tasks and the weekly papers are at least grade 2."]
[7,"Sikeres munkavédelmi beszámoló\n Legalább elégséges félévvégi beszámoló\n Igazolt mulasztások pótlása kijelölt időben\n Legfeljebb egy igazolatlanul hiányzó mérés\nA laboratóriumi gyakorlat értékelése: a gyakorlati munkákra kapott érdemjegyek, valamint a megírt évközi írásbeli beszámoló és a félévvégi összefoglaló írásbeli beszámoló érdemjegyének súlyozott átlaga. Feltétel, hogy az évközi beszámoló és a gyakorlatok 50%-a, továbbá a félévvégi beszámoló legalább elégséges érdemjegyű legyen.","Successful paper from safety provisions \n At least grade 2 end term paper\n Accomplishing justified absence in an agreed occasion\n One unjustified absence is the most\nEvaluation of the laboratory practice: the final mark is the weighted mean value of the marks received for the practical tasks, the mid-term and the end-term paper. It is strictly required that the end-term paper and 50% of the practical tasks and the mid-term paper are at least grade 2."]

{"sheet":"segédtábla","index":4,"n_rows":5,"n_cols":13,"rows_kept":5,"cut":false,"hidden":false,"merged":[]}
["Beadandó + Zárthelyi dolgozat: \nA tárgy teljesítéséhez az általa felölelt ismeretanyag folyamatos feldolgozása szükséges. Ez a gyakorlati órák és a hallgató önálló munkája keretében zajlik. A félévközi teljesítményről a hallgatónak beadandó feladatok révén kell számot adnia. A szorgalmi időszak utolsó hetében a tárgy elméleti vonatkozásaira koncentráló zárthelyi dolgozat kerül megírásra. A félévközi jegyet 50 %-ban a beadandó feladatok, 50 %-ban a zárthelyi dolgozat eredménye alapján állapítjuk meg. Minimális elfogadott teljesítményszint 60 % + 1 pont, az értékelés ötfokozatú skálán történik. \n\nIn order to fulfill the requirements of the course the course materials must be continuously studied during seminars and individually appionted tasks. There are assignments as well which must be handed in throughout the semester. At the last week of the semester students are required to write an end-term test related to the theoretical material of the course. The mark given at the end of the semester includes the assignment (50%) and the test result (50%). The minimum requirement is to reach an accumulated 60% and the final mark is measured on a scale of 5.","Vizsga (zárthelyi dolgozat előfeltétellet): \nAz előadásokon elhangzott és a kötelező irodalomban szereplő ismeretanyagra épülő írásbeli vizsga teljesítése a vizsgaidőszakban. A vizsgára bocsáthatóság feltétele a szorgalmi időszakban esedékes zárthelyi dolgozat sikeres megírása. Minimális elfogadott teljesítményszint a vizsgán 60 % + 1 pont, az értékelés ötfokozatú skálán történik. \n\nA written exam based on the lectures and material assigned in the obligatory literature must be taken in the exam season. The prerequisite of the written exam is a successful test written during the semester. The minimum requirement of the written exam is 60% + 1 point and the final mark is measured on a scale of 5.  ","A tárgy teljesítéséhez az általa felölelt ismeretanyag folyamatos feldolgozása szükséges. Ez a gyakorlati órák és a hallgató önálló munkája keretében zajlik. A félévközi teljesítményről a hallgatónak beadandó feladatok, illetve azok prezentációja révén kell számot adnia. Az aláírás megszerzéséhez minimális elfogadott teljesítményszint 60 % + 1 pont elérése.",null,"Folyamatos számonkérés (F)","ötfokozatú","a) Folyamatos számonkérésen alapuló érdemjegy vizsgaidőszakon belüli javítási lehetőséggel.",null,"Gyakorlati jegy kialakításának módja ",null,null,null,"Kötelező"]
["Beadandó + Prezentáció + Zárthelyi dolgozat: \nA tárgy teljesítéséhez az általa felölelt ismeretanyag folyamatos feldolgozása szükséges. Ez a gyakorlati órák és a hallgató önálló munkája keretében zajlik. A félévközi teljesítményről a hallgatónak beadandó feladatok, illetve azok prezentációja révén kell számot adnia. A szorgalmi időszak utolsó hetében a tárgy ismeretanyagát átfogó zárthelyi dolgozat kerül megírásra. A félévközi jegyet 50 %-ban a beadandó feladatok, 50 %-ban a zárthelyi dolgozat eredménye alapján állapítjuk meg. Minimális elfogadott teljesítményszint 60 % + 1 pont, az értékelés ötfokozatú skálán történik. \n\nIn order to fulfill the requirements of the course the course materials must be continuously studied during seminars and individually appionted tasks. There are assignments as well which must be handed in throughout the semester. At the last week of the semester students are required to write an end-term test related to the theoretical material of the course. The mark given at the end of the semester includes the assignment (50%) and the test result (50%). The minimum requirement is to reach an accumulated 60% + 1 point and the final mark is measured on a scale of 5.","Vizsga (prezentáció előfeltétellel): \nAz előadásokon elhangzott és a kötelező irodalomban szereplő ismeretanyagra épülő írásbeli vizsga teljesítése a vizsgaidőszakban. A vizsgára bocsáthatóság feltétele a szorgalmi időszakban esedékes prezentáció megtartása. Minimális elfogadott teljesítményszint a vizsgán 60 % + 1 pont, az értékelés ötfokozatú skálán történik. \n\nA written exam based on the lectures and material assigned in the obligatory literature must be taken in the exam season. The prerequisite of the written exam is a successful test written during the semester. The minimum requirement of the written exam is 60% + 1 point and the final mark is measured on a scale of 5.","Ide is.",null,"Félévközi jegy (É)","háromfokozatú","b) Folyamatos számonkérésen alapuló érdemjegy vizsgaidőszakon belüli javítási lehetőség nélkül (amikor a vizsgaidőszakban a javítás lehetősége laboratóriumi gyakorlatok, féléves gyakorlati feladat, vagy a tanítási gyakorlat pótlását jelentené). Elégtelen osztályzat esetén a tantárgyat meg kell ismételni.",null,"Vizsgajegy kialakításának módja",null,null,null,"Kötelezően választható"]
["Beadandó + 2 Zárthelyi dolgozat: \nA tárgy teljesítéséhez az általa felölelt ismeretanyag folyamatos feldolgozása szükséges. Ez a gyakorlati órák és a hallgató önálló munkája keretében zajlik. A félévközi teljesítményről a hallgatónak egy beadandó feladat és egy zárthelyi dolgozat révén kell számot adnia. A szorgalmi időszak utolsó hetében a tárgy ismeretanyagát átfogó zárthelyi dolgozat kerül megírásra. A félévközi jegyet 30 %-ban a beadandó feladat, 30 %-ban a félévközi, 40 %-ban a félév végi zárthelyi dolgozat eredménye alapján állapítjuk meg. Minimális elfogadott teljesítményszint 60 % + 1 pont, az értékelés ötfokozatú skálán történik. \n\nIn order to fulfill the requirements of the course the course materials must be continuously studied during seminars and individually appionted tasks. There are assignments as well which must be handed in throughout the semester. At the last week of the semester students are required to write an end-term test related to the theoretical material of the course. The mark given at the end of the semester includes the assignment (30%) and the mid-test result (30%) and the final-test reult (40%). The minimum requirement is to reach an accumulated 60% + 1 point and the final mark is measured on a scale of 5.","Vizsga + Beadandó: \nA tárgy teljesítéséhez az általa felölelt ismeretanyag folyamatos feldolgozása szükséges. Ez az elméleti és gyakorlati órák, valamint a hallgató önálló munkája keretében zajlik. A félévközi teljesítményről a hallgatónak egy beadandó feladat révén kell számot adnia. A tárgy ismeretanyagát átfogó számonkérésre a vizsgán kerül sor. A végső érdemjegyet 50 %-ban a beadandó feladat, 50 %-ban a vizsgadolgozat eredménye alapján állapítjuk meg. Minimális elfogadott teljesítményszint a vizsgán 60 % + 1 pont, az értékelés ötfokozatú skálán történik. \n\nIn order to fulfill the requirements of the course the course materials must be continuously studied during seminars, lectures and individually appionted tasks. There are assignments as well which must be handed in throughout the semester. At the last week of the semester students are required to write an end-term test related to the theoretical material of the course. The mark given at the end of the semester includes the assignment (50%) and the test result (50%). The minimum requirement is to reach an accumulated 60% and the final mark is measured on a scale of 5. ","Meg még ide is",null,"Kollokvium (K)","kétfokozatú","c) Vizsgaidőszakon belüli számonkérésen alapuló érdemjegy - lehet írásbeli, szóbeli vagy a kettő kombinációja.",null,null,null,null,null,"Szabadon választható "]
[null,null,null,null,"Vizsga (V)",null,"d) Félévközi és vizsgaidőszakon belüli számonkérés kombinációja - a félévközi teljesítmény a vizsgán kialakult osztályzat részét képezi."]
[null,null,null,null,"Aláírás megszerzése (A)"]